Workbook

Sheet MDT
E72: № | F72: Показатель | G72: % выполнения | H72: % затраченного времени
E73: Общий итог | G73: =Options!Q2 -> - | H73: =Options!R2 -> -
E74: Умственное развитие | G74: =IFERROR(IF(TESTING_FLAG,INDEX(table_MD[Умственное развитие],MATCH(SCORE_TOTAL,INDEX(table_MD[[1]:[3]],,LEVEL_TESTING),1),1),"-"),"-") -> -
E75: Субтест
E76: 1 | F76: Осведомлённость I | G76: =table_SubTests[[% выполнения]:[% затраченного времени]] -> - | H76: -
E77: 2 | F77: Осведомлённость II | G77: - | H77: -
E78: 3 | F78: Аналогии | G78: - | H78: -
E79: 4 | F79: Классификация | G79: - | H79: -
E80: 5 | F80: Обобщение | G80: - | H80: -
E81: 6 | F81: Ряды | G81: - | H81: -
E83: Тип осведомлённости
E84: 1 | F84: Общественно-политическая осведомленность | G84: =IF(TESTING_FLAG,SUM(IF(SubTests[№_ТипОсведомлённости]=$E84,IF(SubTests[Правильный ответ]=SubTests[Ответ],SubTests[Макс_Балл],0),0))/SUM(IF(SubTests[№_ТипОсведомлённости]=$E84,SubTests[Макс_Балл],0)),"-") -> -
E85: 2 | F85: Hаучно-культурная осведомленность | G85: =IF(TESTING_FLAG,SUM(IF(SubTests[№_ТипОсведомлённости]=$E85,IF(SubTests[Правильный ответ]=SubTests[Ответ],SubTests[Макс_Балл],0),0))/SUM(IF(SubTests[№_ТипОсведомлённости]=$E85,SubTests[Макс_Балл],0)),"-") -> -
E87: Тип логической связи
E88: 1 | F88: Род - вид | G88: =IF(TESTING_FLAG,SUM(IF(SubTests[№_ТипЛогическойСвязи]=$E88,IF(SubTests[Правильный ответ]=SubTests[Ответ],SubTests[Макс_Балл],0),0))/SUM(IF(SubTests[№_ТипЛогическойСвязи]=$E88,SubTests[Макс_Балл],0)),"-") -> -
E89: 2 | F89: Часть - целое | G89: =IF(TESTING_FLAG,SUM(IF(SubTests[№_ТипЛогическойСвязи]=$E89,IF(SubTests[Правильный ответ]=SubTests[Ответ],SubTests[Макс_Балл],0),0))/SUM(IF(SubTests[№_ТипЛогическойСвязи]=$E89,SubTests[Макс_Балл],0)),"-") -> -
E90: 3 | F90: Причина - следствие | G90: =IF(TESTING_FLAG,SUM(IF(SubTests[№_ТипЛогическойСвязи]=$E90,IF(SubTests[Правильный ответ]=SubTests[Ответ],SubTests[Макс_Балл],0),0))/SUM(IF(SubTests[№_ТипЛогическойСвязи]=$E90,SubTests[Макс_Балл],0)),"-") -> -
E91: 4 | F91: Противоположность | G91: =IF(TESTING_FLAG,SUM(IF(SubTests[№_ТипЛогическойСвязи]=$E91,IF(SubTests[Правильный ответ]=SubTests[Ответ],SubTests[Макс_Балл],0),0))/SUM(IF(SubTests[№_ТипЛогическойСвязи]=$E91,SubTests[Макс_Балл],0)),"-") -> -
E92: 5 | F92: Порядок следования | G92: =IF(TESTING_FLAG,SUM(IF(SubTests[№_ТипЛогическойСвязи]=$E92,IF(SubTests[Правильный ответ]=SubTests[Ответ],SubTests[Макс_Балл],0),0))/SUM(IF(SubTests[№_ТипЛогическойСвязи]=$E92,SubTests[Макс_Балл],0)),"-") -> -
E93: 6 | F93: Родоположенность | G93: =IF(TESTING_FLAG,SUM(IF(SubTests[№_ТипЛогическойСвязи]=$E93,IF(SubTests[Правильный ответ]=SubTests[Ответ],SubTests[Макс_Балл],0),0))/SUM(IF(SubTests[№_ТипЛогическойСвязи]=$E93,SubTests[Макс_Балл],0)),"-") -> -
E94: 7 | F94: Функциональные отношения | G94: =IF(TESTING_FLAG,SUM(IF(SubTests[№_ТипЛогическойСвязи]=$E94,IF(SubTests[Правильный ответ]=SubTests[Ответ],SubTests[Макс_Балл],0),0))/SUM(IF(SubTests[№_ТипЛогическойСвязи]=$E94,SubTests[Макс_Балл],0)),"-") -> -
E96: Тип задания
E97: 1 | F97: Задания с абстрактными понятиями | G97: =IF(TESTING_FLAG,SUM(IF(SubTests[№_ТипЗадания]=$E97,IF(SubTests[Правильный ответ]=SubTests[Ответ],SubTests[Макс_Балл],0),0))/SUM(IF(SubTests[№_ТипЗадания]=$E97,SubTests[Макс_Балл],0)),"-") -> -
E98: 2 | F98: Смешанные задания | G98: =IF(TESTING_FLAG,SUM(IF(SubTests[№_ТипЗадания]=$E98,IF(SubTests[Правильный ответ]=SubTests[Ответ],SubTests[Макс_Балл],0),0))/SUM(IF(SubTests[№_ТипЗадания]=$E98,SubTests[Макс_Балл],0)),"-") -> -
E99: 3 | F99: Задания с конкретными понятиями | G99: =IF(TESTING_FLAG,SUM(IF(SubTests[№_ТипЗадания]=$E99,IF(SubTests[Правильный ответ]=SubTests[Ответ],SubTests[Макс_Балл],0),0))/SUM(IF(SubTests[№_ТипЗадания]=$E99,SubTests[Макс_Балл],0)),"-") -> -
E101: Дисциплина
E102: 1 | F102: Литература, русский язык | G102: =IF(TESTING_FLAG,SUM(IF(SubTests[№_Дисциплина]=$E102,IF(SubTests[Правильный ответ]=SubTests[Ответ],SubTests[Макс_Балл],0),0))/SUM(IF(SubTests[№_Дисциплина]=$E102,SubTests[Макс_Балл],0)),"-") -> -
E103: 2 | F103: Математика, физика | G103: =IF(TESTING_FLAG,SUM(IF(SubTests[№_Дисциплина]=$E103,IF(SubTests[Правильный ответ]=SubTests[Ответ],SubTests[Макс_Балл],0),0))/SUM(IF(SubTests[№_Дисциплина]=$E103,SubTests[Макс_Балл],0)),"-") -> -
E104: 3 | F104: История | G104: =IF(TESTING_FLAG,SUM(IF(SubTests[№_Дисциплина]=$E104,IF(SubTests[Правильный ответ]=SubTests[Ответ],SubTests[Макс_Балл],0),0))/SUM(IF(SubTests[№_Дисциплина]=$E104,SubTests[Макс_Балл],0)),"-") -> -
E105: 4 | F105: Биология | G105: =IF(TESTING_FLAG,SUM(IF(SubTests[№_Дисциплина]=$E105,IF(SubTests[Правильный ответ]=SubTests[Ответ],SubTests[Макс_Балл],0),0))/SUM(IF(SubTests[№_Дисциплина]=$E105,SubTests[Макс_Балл],0)),"-") -> -
E106: 5 | F106: География | G106: =IF(TESTING_FLAG,SUM(IF(SubTests[№_Дисциплина]=$E106,IF(SubTests[Правильный ответ]=SubTests[Ответ],SubTests[Макс_Балл],0),0))/SUM(IF(SubTests[№_Дисциплина]=$E106,SubTests[Макс_Балл],0)),"-") -> -

Sheet Options (hidden)
J2: =SUBTOTAL(9,table_SubTests[МаксБалл]) -> 138 | K2: =SUBTOTAL(9,table_SubTests[Время]) -> 2640 | L2: =SUBTOTAL(9,table_SubTests[КолВопросов]) -> 119 | O2: =SUBTOTAL(9,table_SubTests[Результат_баллы]) -> 0 | P2: =SUBTOTAL(9,table_SubTests[Результат_время]) -> 0 | Q2: =IF(TESTING_FLAG,SCORE_TOTAL/SCORE_MAX_TOTAL,"-") -> - | R2: =IF(TESTING_FLAG,TIME_TOTAL/TIME_MAX_TOTAL,"-") -> -
B3: Параметры тестирования | G3: № | H3: Субтест | I3: Описание | J3: МаксБалл | K3: Время | L3: КолВопросов | M3: Пример1 | N3: Пример2 | O3: Результат_баллы | P3: Результат_время | Q3: % выполнения | R3: % затраченного времени | S3: Тип осведомлённости | T3: 1 | U3: 2 | V3: 3 | W3: Умственное развитие
B4: Уровень тестирования | C4: 1 | D4: Вопрос | E4: =IFERROR(INDEX(SubTests[Вопрос],ANSWER_RowNum,1),"") ->  | G4: 1 | H4: Осведомлённость I | I4: Задания состоят из предложений вопросительного характера. В каждом из них не хватает одного слова. Вы должны из пяти приведенных слов выбрать то, которое правильно дополняет данное предложение. Выбрать можно только одно слово. | J4: 20 | K4: 480 | L4: 20 | M4: Пpимеp №1 Одинаковыми по смыслу являются слова «биогpафия» и ...? 1) случай, 2) подвиг, 3) жизнеописание, 4) книга, 5) писатель. Правильным ответом будет слово «жизнеописание». | N4: Пpимеp №2 Противоположным к слову «отрицательный» будет слово …? 1) неудачный, 2) спорный, 3) важный, 4) случайный, 5) положительный. В этом случае правильным ответом является слово «положительный». | O4: =IFERROR(SUMIF(SubTests[Субтест_№],table_SubTests[[#This Row],[№]],SubTests[Балл]),-1) -> 0 | P4: 0 | Q4: =IF(TESTING_FLAG,table_SubTests[[#This Row],[Результат_баллы]]/table_SubTests[[#This Row],[МаксБалл]],"-") -> - | R4: =IF(TESTING_FLAG,table_SubTests[[#This Row],[Результат_время]]/table_SubTests[[#This Row],[Время]],"-") -> - | T4: 0 | U4: 0 | V4: 0 | W4: Низкое
B5: Номер субтеста | C5: 0 | D5: Ответ 1 | E5: =IFERROR(IF(INDEX(SubTests[Ответ1],ANSWER_RowNum,1)="","",INDEX(SubTests[Ответ1],ANSWER_RowNum,1)),"") ->  | G5: 2 | H5: Осведомлённость II | I5: K слову, которое стоит в первой строке, надо подобрать из четырех предложенных слов такое, которое совпадало бы с ним по смыслу, то есть слово синоним. Выбpать можно только одно слово. | J5: 20 | K5: 240 | L5: 20 | M5: Пpимеp №1 Век – 1) история, 2) столетие, 3) событие, 4) прогресс. Правильным ответом будет слово «столетие». | N5: Пpимеp №2 Прогноз – 1) погода, 2) донесение, 3) предсказание, 4) причина. В этом случае правильным ответом является слово «предсказание». | O5: =IFERROR(SUMIF(SubTests[Субтест_№],table_SubTests[[#This Row],[№]],SubTests[Балл]),-1) -> 0 | P5: 0 | Q5: =IF(TESTING_FLAG,table_SubTests[[#This Row],[Результат_баллы]]/table_SubTests[[#This Row],[МаксБалл]],"-") -> - | R5: =IF(TESTING_FLAG,table_SubTests[[#This Row],[Результат_время]]/table_SubTests[[#This Row],[Время]],"-") -> - | T5: 30 | U5: 40 | V5: 45 | W5: Ниже среднего
B6: Номер вопроса | D6: Ответ 2 | E6: =IFERROR(IF(INDEX(SubTests[Ответ2],ANSWER_RowNum,1)="","",INDEX(SubTests[Ответ2],ANSWER_RowNum,1)),"") ->  | G6: 3 | H6: Аналогии | I6: Вам предлагаются три слова. Между первым и вторым словами существует определенная связь. Между третьим и одним из пяти слов, предлагаемых на выбор, существует аналогичная, та же самая связь. Выбрать можно только одно слово. | J6: 25 | K6: 600 | L6: 25 | M6: Пpимеp №1 песня – композитор : самолет – … 1) аэропорт, 2) полет, 3) конструктор, 4) горючее, 5) истребитель. Правильным ответом будет слово «конструктор». | N6: Пpимеp №2 добро – зло : день – … 1) солнце, 2) ночь, 3) неделя, 4) среда, 5) сутки. В этом случае правильным ответом является слово «ночь». | O6: =IFERROR(SUMIF(SubTests[Субтест_№],table_SubTests[[#This Row],[№]],SubTests[Балл]),-1) -> 0 | P6: 0 | Q6: =IF(TESTING_FLAG,table_SubTests[[#This Row],[Результат_баллы]]/table_SubTests[[#This Row],[МаксБалл]],"-") -> - | R6: =IF(TESTING_FLAG,table_SubTests[[#This Row],[Результат_время]]/table_SubTests[[#This Row],[Время]],"-") -> - | T6: 50 | U6: 65 | V6: 75 | W6: Среднее
B7: ID | C7: =IF(QUESTION_NUM>0,SUBTEST_NUM*100+QUESTION_NUM,0) -> 0 | D7: Ответ 3 | E7: =IFERROR(IF(INDEX(SubTests[Ответ3],ANSWER_RowNum,1)="","",INDEX(SubTests[Ответ3],ANSWER_RowNum,1)),"") ->  | G7: 4 | H7: Классификация | I7: Вам предлагаются пять слов. Четыре из них объединены одним общим признаком. Пятое слово к ним не подходит. Его нужно найти и выбрать. Выбрать можно только одно слово. | J7: 20 | K7: 420 | L7: 20 | M7: Пример №1 1) тарелка, 2) чашка, 3) стол, 4) кастрюля, 5) чайник. Первое, второе, четвертое и пятое слова обозначают посуду, а третье слово – мебель. Правильным ответом будет слово «мебель». | N7: Пример №2 1) идти, 2) прыгать, 3) танцевать, 4) сидеть, 5) бежать. Четыре слова обозначают состояние движения, а слово «сидеть» – покоя. Поэтому правильным ответом является слово «сидеть». | O7: =IFERROR(SUMIF(SubTests[Субтест_№],table_SubTests[[#This Row],[№]],SubTests[Балл]),-1) -> 0 | P7: 0 | Q7: =IF(TESTING_FLAG,table_SubTests[[#This Row],[Результат_баллы]]/table_SubTests[[#This Row],[МаксБалл]],"-") -> - | R7: =IF(TESTING_FLAG,table_SubTests[[#This Row],[Результат_время]]/table_SubTests[[#This Row],[Время]],"-") -> - | T7: 75 | U7: 90 | V7: 100 | W7: Выше среднего
B8: Номер стороки таблицы | C8: =IFERROR(MATCH(QUESTION_ID,SubTests[ID],0),0) -> 0 | D8: Ответ 4 | E8: =IFERROR(IF(INDEX(SubTests[Ответ4],ANSWER_RowNum,1)="","",INDEX(SubTests[Ответ4],ANSWER_RowNum,1)),"") ->  | G8: 5 | H8: Обобщение | I8: Вам предлагаются два слова. Нужно определить, что между ними общего, и из трех предложенных признаков выбрать тот, который отражает наиболее существенные общие признаки обоих слов. Выбрать можно только один признак. | J8: 38 | K8: 480 | L8: 19 | M8: Пример №1 Ель – сосна. 1) ель, 2) хвойные деревья, 3) кустарники. Правильным ответом будет слово «хвойные деревья». | N8: Пример №2 Дождь – град. 1) природные явления, 2) климат, 3) осадки. В этом случае правильным ответом является слово «осадки». | O8: =IFERROR(SUMIF(SubTests[Субтест_№],table_SubTests[[#This Row],[№]],SubTests[Балл]),-1) -> 0 | P8: 0 | Q8: =IF(TESTING_FLAG,table_SubTests[[#This Row],[Результат_баллы]]/table_SubTests[[#This Row],[МаксБалл]],"-") -> - | R8: =IF(TESTING_FLAG,table_SubTests[[#This Row],[Результат_время]]/table_SubTests[[#This Row],[Время]],"-") -> - | T8: 106 | U8: 121 | V8: 131 | W8: Высокое
B9: Количество вопросов | C9: =IF(SUBTEST_NUM>0,INDEX(table_SubTests[КолВопросов],SUBTEST_NUM,1),"") ->  | D9: Ответ 5 | E9: =IFERROR(IF(INDEX(SubTests[Ответ5],ANSWER_RowNum,1)="","",INDEX(SubTests[Ответ5],ANSWER_RowNum,1)),"") ->  | G9: 6 | H9: Ряды | I9: Вам предлагаются ряды чисел, расположенных по определенному правилу. Ваша задача состоит в том, чтобы определить число, которое было бы продолжением соответствующего ряда и ввести его. Выбрать можно только одно число. Каждый ряд построен по своему правилу. В некоторых заданиях при нахождении правила построения ряда вам необходимо будет пользоваться умножением, делением и другими действиями. | J9: 15 | K9: 420 | L9: 15 | M9: Пример №1 2 4 6 8 10 … В этом ряду каждое последующее число на 2 больше предыдущего. Поэтому следует ввести число 12, которое и будет следующим числом. Введите число 12 с клавиатуры. | N9: Пример №2 7 10 8 11 9 12 … В этом ряду поочередно отнимается 2 и прибавляется 3. Следующим числом должно быть число 10. Введите число 10 с клавиатуры. | O9: =IFERROR(SUMIF(SubTests[Субтест_№],table_SubTests[[#This Row],[№]],SubTests[Балл]),-1) -> 0 | P9: 0 | Q9: =IF(TESTING_FLAG,table_SubTests[[#This Row],[Результат_баллы]]/table_SubTests[[#This Row],[МаксБалл]],"-") -> - | R9: =IF(TESTING_FLAG,table_SubTests[[#This Row],[Результат_время]]/table_SubTests[[#This Row],[Время]],"-") -> -
B10: Время выполнения | C10: =IF(SUBTEST_NUM>0,INDEX(table_SubTests[Время],SUBTEST_NUM,1)/60,"") ->  | D10: Ответ № | E10: 0
B11: Текущее время | D11: Флаг тестирования | E11: =COUNTIF(table_SubTests[Результат_время],"0")=0 -> FALSE
B12: Субтест | C12: =IFERROR(IF(SUBTEST_NUM>0,"Субтест №" & TEXT(SUBTEST_NUM,"0") & ". "& INDEX(table_SubTests[Субтест],SUBTEST_NUM,1),""),"") -> 
B13: Описание | C13: =IFERROR(INDEX(table_SubTests[Описание],SUBTEST_NUM,1),"") -> 
B14: Пример №1 | C14: =IFERROR(IF(QUESTION_NUM>0,"",INDEX(table_SubTests[Пример1],SUBTEST_NUM,1)),"") -> 
B15: Пример №2 | C15: =IFERROR(IF(QUESTION_NUM>0,"",INDEX(table_SubTests[Пример2],SUBTEST_NUM,1)),"") -> 
B18: Вопрос_№ | C18: Субтест_№ | D18: ID | E18: Вопрос | F18: Ответ1 | G18: Ответ2 | H18: Ответ3 | I18: Ответ4 | J18: Ответ5 | K18: Правильный ответ | L18: Балл1 | M18: Балл2 | N18: Балл3 | O18: Балл4 | P18: Балл5 | Q18: Макс_Балл | R18: Ответ | S18: Балл | T18: №_ТипОсведомлённости | U18: №_ТипЛогическойСвязи | V18: №_ТипЗадания | W18: №_Дисциплина | X18: Субтест | Y18: Тип осведомлённости | Z18: Дисциплина | AA18: Тип логической связи | AB18: Тип задания
B19: 1 | C19: 1 | D19: =SubTests[[#This Row],[Субтест_№]]*100+SubTests[[#This Row],[Вопрос_№]] -> 101 | E19: Начальные буквы имени и отчества называются ...? | F19: вензель | G19: инициалы | H19: автограф | I19: индекс | J19: анаграмма | K19: 2 | L19: 0 | M19: 1 | N19: 0 | O19: 0 | P19: 0 | Q19: 1 | S19: =IFERROR(INDEX(SubTests[[#This Row],[Балл1]:[Балл5]],1,SubTests[[#This Row],[Ответ]]),0) -> 0 | T19: 2 | U19: 0 | V19: 0 | W19: 0 | X19: Осведомлённость I | Y19: Hаучно-культурная осведомленность
B20: 2 | C20: 1 | D20: =SubTests[[#This Row],[Субтест_№]]*100+SubTests[[#This Row],[Вопрос_№]] -> 102 | E20: Гуманный - это ...? | F20: общественный | G20: человечный | H20: профессиональный | I20: агрессивный | J20: пренебрежительный | K20: 2 | L20: 0 | M20: 1 | N20: 0 | O20: 0 | P20: 0 | Q20: 1 | S20: =IFERROR(INDEX(SubTests[[#This Row],[Балл1]:[Балл5]],1,SubTests[[#This Row],[Ответ]]),0) -> 0 | T20: 1 | U20: 0 | V20: 0 | W20: 0 | X20: Осведомлённость I | Y20: Общественно-политическая осведомленность
B21: 3 | C21: 1 | D21: =SubTests[[#This Row],[Субтест_№]]*100+SubTests[[#This Row],[Вопрос_№]] -> 103 | E21: Система взглядов на природу и общество есть ...? | F21: мечта | G21: оценка | H21: мировоззрение | I21: кругозор | J21: иллюзия | K21: 3 | L21: 0 | M21: 0 | N21: 1 | O21: 0 | P21: 0 | Q21: 1 | S21: =IFERROR(INDEX(SubTests[[#This Row],[Балл1]:[Балл5]],1,SubTests[[#This Row],[Ответ]]),0) -> 0 | T21: 2 | U21: 0 | V21: 0 | W21: 0 | X21: Осведомлённость I | Y21: Hаучно-культурная осведомленность
B22: 4 | C22: 1 | D22: =SubTests[[#This Row],[Субтест_№]]*100+SubTests[[#This Row],[Вопрос_№]] -> 104 | E22: Государство, не находящееся в зависимости от других государств, является …? | F22: суверенным | G22: малоразвитым | H22: миролюбивым | I22: процветающим | J22: единым | K22: 1 | L22: 1 | M22: 0 | N22: 0 | O22: 0 | P22: 0 | Q22: 1 | S22: =IFERROR(INDEX(SubTests[[#This Row],[Балл1]:[Балл5]],1,SubTests[[#This Row],[Ответ]]),0) -> 0 | T22: 1 | U22: 0 | V22: 0 | W22: 0 | X22: Осведомлённость I | Y22: Общественно-политическая осведомленность
B23: 5 | C23: 1 | D23: =SubTests[[#This Row],[Субтест_№]]*100+SubTests[[#This Row],[Вопрос_№]] -> 105 | E23: Наука о выведении лучших пород животных и сортов растений - ...? | F23: бионика | G23: химия | H23: селекция | I23: ботаника | J23: физиология | K23: 3 | L23: 0 | M23: 0 | N23: 1 | O23: 0 | P23: 0 | Q23: 1 | S23: =IFERROR(INDEX(SubTests[[#This Row],[Балл1]:[Балл5]],1,SubTests[[#This Row],[Ответ]]),0) -> 0 | T23: 2 | U23: 0 | V23: 0 | W23: 0 | X23: Осведомлённость I | Y23: Hаучно-культурная осведомленность
B24: 6 | C24: 1 | D24: =SubTests[[#This Row],[Субтест_№]]*100+SubTests[[#This Row],[Вопрос_№]] -> 106 | E24: Краткая запись, сжатое изложение содержания книги, лекции, доклада - ...? | F24: абзац | G24: цитата | H24: рубрика | I24: отрывок | J24: конспект | K24: 5 | L24: 0 | M24: 0 | N24: 0 | O24: 0 | P24: 1 | Q24: 1 | S24: =IFERROR(INDEX(SubTests[[#This Row],[Балл1]:[Балл5]],1,SubTests[[#This Row],[Ответ]]),0) -> 0 | T24: 2 | U24: 0 | V24: 0 | W24: 0 | X24: Осведомлённость I | Y24: Hаучно-культурная осведомленность
B25: 7 | C25: 1 | D25: =SubTests[[#This Row],[Субтест_№]]*100+SubTests[[#This Row],[Вопрос_№]] -> 107 | E25: Начитанность, глубокие и широкие познания - это ...? | F25: интеллигентность | G25: опытность | H25: эрудиция | I25: талант | J25: самомнение | K25: 3 | L25: 0 | M25: 0 | N25: 1 | O25: 0 | P25: 0 | Q25: 1 | S25: =IFERROR(INDEX(SubTests[[#This Row],[Балл1]:[Балл5]],1,SubTests[[#This Row],[Ответ]]),0) -> 0 | T25: 2 | U25: 0 | V25: 0 | W25: 0 | X25: Осведомлённость I | Y25: Hаучно-культурная осведомленность
B26: 8 | C26: 1 | D26: =SubTests[[#This Row],[Субтест_№]]*100+SubTests[[#This Row],[Вопрос_№]] -> 108 | E26: Отсутствие интереса и живого активного участия к окружающему - это ...? | F26: рациональность | G26: пассивность | H26: чуткость | I26: противоречивость | J26: черствость | K26: 2 | L26: 0 | M26: 1 | N26: 0 | O26: 0 | P26: 0 | Q26: 1 | S26: =IFERROR(INDEX(SubTests[[#This Row],[Балл1]:[Балл5]],1,SubTests[[#This Row],[Ответ]]),0) -> 0 | T26: 1 | U26: 0 | V26: 0 | W26: 0 | X26: Осведомлённость I | Y26: Общественно-политическая осведомленность
B27: 9 | C27: 1 | D27: =SubTests[[#This Row],[Субтест_№]]*100+SubTests[[#This Row],[Вопрос_№]] -> 109 | E27: Свод законов, относящихся к какой-либо области человеческой жизни - ...? | F27: резолюция | G27: постановление | H27: традиция | I27: кодекс | J27: проект | K27: 4 | L27: 0 | M27: 0 | N27: 0 | O27: 1 | P27: 0 | Q27: 1 | S27: =IFERROR(INDEX(SubTests[[#This Row],[Балл1]:[Балл5]],1,SubTests[[#This Row],[Ответ]]),0) -> 0 | T27: 1 | U27: 0 | V27: 0 | W27: 0 | X27: Осведомлённость I | Y27: Общественно-политическая осведомленность
B28: 10 | C28: 1 | D28: =SubTests[[#This Row],[Субтест_№]]*100+SubTests[[#This Row],[Вопрос_№]] -> 110 | E28: Противоположностью понятия "лицемерный" будет …? | F28: искренний | G28: противоречивый | H28: фальшивый | I28: вежливый | J28: решительный | K28: 1 | L28: 1 | M28: 0 | N28: 0 | O28: 0 | P28: 0 | Q28: 1 | S28: =IFERROR(INDEX(SubTests[[#This Row],[Балл1]:[Балл5]],1,SubTests[[#This Row],[Ответ]]),0) -> 0 | T28: 2 | U28: 0 | V28: 0 | W28: 0 | X28: Осведомлённость I | Y28: Hаучно-культурная осведомленность
B29: 11 | C29: 1 | D29: =SubTests[[#This Row],[Субтест_№]]*100+SubTests[[#This Row],[Вопрос_№]] -> 111 | E29: Если спор заканчивается взаимными уступками, тогда говорят о ...? | F29: компромиссе | G29: общении | H29: объединении | I29: переговорах | J29: противоречии | K29: 1 | L29: 1 | M29: 0 | N29: 0 | O29: 0 | P29: 0 | Q29: 1 | S29: =IFERROR(INDEX(SubTests[[#This Row],[Балл1]:[Балл5]],1,SubTests[[#This Row],[Ответ]]),0) -> 0 | T29: 1 | U29: 0 | V29: 0 | W29: 0 | X29: Осведомлённость I | Y29: Общественно-политическая осведомленность
B30: 12 | C30: 1 | D30: =SubTests[[#This Row],[Субтест_№]]*100+SubTests[[#This Row],[Вопрос_№]] -> 112 | E30: Этика - это учение о ...? | F30: психике | G30: морали | H30: природе | I30: обществе | J30: искусстве | K30: 2 | L30: 0 | M30: 1 | N30: 0 | O30: 0 | P30: 0 | Q30: 1 | S30: =IFERROR(INDEX(SubTests[[#This Row],[Балл1]:[Балл5]],1,SubTests[[#This Row],[Ответ]]),0) -> 0 | T30: 2 | U30: 0 | V30: 0 | W30: 0 | X30: Осведомлённость I | Y30: Hаучно-культурная осведомленность
B31: 13 | C31: 1 | D31: =SubTests[[#This Row],[Субтест_№]]*100+SubTests[[#This Row],[Вопрос_№]] -> 113 | E31: Противоположностью понятия "идентичный" будет ...? | F31: тождественный | G31: единственный | H31: внушительный | I31: различный | J31: изолированный | K31: 4 | L31: 0 | M31: 0 | N31: 0 | O31: 1 | P31: 0 | Q31: 1 | S31: =IFERROR(INDEX(SubTests[[#This Row],[Балл1]:[Балл5]],1,SubTests[[#This Row],[Ответ]]),0) -> 0 | T31: 2 | U31: 0 | V31: 0 | W31: 0 | X31: Осведомлённость I | Y31: Hаучно-культурная осведомленность
B32: 14 | C32: 1 | D32: =SubTests[[#This Row],[Субтест_№]]*100+SubTests[[#This Row],[Вопрос_№]] -> 114 | E32: Освобождение от зависимости, предрассудков, уравнение в правах - ...? | F32: закон | G32: эмиграция | H32: воззрение | I32: действие | J32: эмансипация | K32: 5 | L32: 0 | M32: 0 | N32: 0 | O32: 0 | P32: 1 | Q32: 1 | S32: =IFERROR(INDEX(SubTests[[#This Row],[Балл1]:[Балл5]],1,SubTests[[#This Row],[Ответ]]),0) -> 0 | T32: 1 | U32: 0 | V32: 0 | W32: 0 | X32: Осведомлённость I | Y32: Общественно-политическая осведомленность
B33: 15 | C33: 1 | D33: =SubTests[[#This Row],[Субтест_№]]*100+SubTests[[#This Row],[Вопрос_№]] -> 115 | E33: Оппозиция - это ...? | F33: противодействие | G33: согласие | H33: мнение | I33: политика | J33: решение | K33: 1 | L33: 1 | M33: 0 | N33: 0 | O33: 0 | P33: 0 | Q33: 1 | S33: =IFERROR(INDEX(SubTests[[#This Row],[Балл1]:[Балл5]],1,SubTests[[#This Row],[Ответ]]),0) -> 0 | T33: 1 | U33: 0 | V33: 0 | W33: 0 | X33: Осведомлённость I | Y33: Общественно-политическая осведомленность
B34: 16 | C34: 1 | D34: =SubTests[[#This Row],[Субтест_№]]*100+SubTests[[#This Row],[Вопрос_№]] -> 116 | E34: Цивилизация - это ...? | F34: формация | G34: древность | H34: производство | I34: культура | J34: общение | K34: 4 | L34: 0 | M34: 0 | N34: 0 | O34: 1 | P34: 0 | Q34: 1 | S34: =IFERROR(INDEX(SubTests[[#This Row],[Балл1]:[Балл5]],1,SubTests[[#This Row],[Ответ]]),0) -> 0 | T34: 2 | U34: 0 | V34: 0 | W34: 0 | X34: Осведомлённость I | Y34: Hаучно-культурная осведомленность
B35: 17 | C35: 1 | D35: =SubTests[[#This Row],[Субтест_№]]*100+SubTests[[#This Row],[Вопрос_№]] -> 117 | E35: Одинаковыми по смыслу являются слова "приоритет" и ...? | F35: изобретение | G35: идея | H35: выбор | I35: первенство | J35: руководство | K35: 4 | L35: 0 | M35: 0 | N35: 0 | O35: 1 | P35: 0 | Q35: 1 | S35: =IFERROR(INDEX(SubTests[[#This Row],[Балл1]:[Балл5]],1,SubTests[[#This Row],[Ответ]]),0) -> 0 | T35: 2 | U35: 0 | V35: 0 | W35: 0 | X35: Осведомлённость I | Y35: Hаучно-культурная осведомленность
B36: 18 | C36: 1 | D36: =SubTests[[#This Row],[Субтест_№]]*100+SubTests[[#This Row],[Вопрос_№]] -> 118 | E36: Коалиция - это ...? | F36: конкуренция | G36: политика | H36: вражда | I36: разрыв | J36: об'единение | K36: 5 | L36: 0 | M36: 0 | N36: 0 | O36: 0 | P36: 1 | Q36: 1 | S36: =IFERROR(INDEX(SubTests[[#This Row],[Балл1]:[Балл5]],1,SubTests[[#This Row],[Ответ]]),0) -> 0 | T36: 1 | U36: 0 | V36: 0 | W36: 0 | X36: Осведомлённость I | Y36: Общественно-политическая осведомленность
B37: 19 | C37: 1 | D37: =SubTests[[#This Row],[Субтест_№]]*100+SubTests[[#This Row],[Вопрос_№]] -> 119 | E37: Одинаковыми по смыслу являются слова "альтруизм" и ...? | F37: человеколюбие | G37: взаимоотношение | H37: вежливость | I37: эгоизм | J37: нравственность | K37: 1 | L37: 1 | M37: 0 | N37: 0 | O37: 0 | P37: 0 | Q37: 1 | S37: =IFERROR(INDEX(SubTests[[#This Row],[Балл1]:[Балл5]],1,SubTests[[#This Row],[Ответ]]),0) -> 0 | T37: 2 | U37: 0 | V37: 0 | W37: 0 | X37: Осведомлённость I | Y37: Hаучно-культурная осведомленность
B38: 20 | C38: 1 | D38: =SubTests[[#This Row],[Субтест_№]]*100+SubTests[[#This Row],[Вопрос_№]] -> 120 | E38: Человек, который скептически относится к прогрессу, является ...? | F38: демократом | G38: радикалом | H38: консерватором | I38: либералом | J38: анархистом | K38: 3 | L38: 0 | M38: 0 | N38: 1 | O38: 0 | P38: 0 | Q38: 1 | S38: =IFERROR(INDEX(SubTests[[#This Row],[Балл1]:[Балл5]],1,SubTests[[#This Row],[Ответ]]),0) -> 0 | T38: 1 | U38: 0 | V38: 0 | W38: 0 | X38: Осведомлённость I | Y38: Общественно-политическая осведомленность
B39: 1 | C39: 2 | D39: =SubTests[[#This Row],[Субтест_№]]*100+SubTests[[#This Row],[Вопрос_№]] -> 201 | E39: Прогрессивный - ... | F39: интеллектуальный | G39: передовой | H39: ловкий | I39: отсталый | K39: 2 | L39: 0 | M39: 1 | N39: 0 | O39: 0 | P39: 0 | Q39: 1 | S39: =IFERROR(INDEX(SubTests[[#This Row],[Балл1]:[Балл5]],1,SubTests[[#This Row],[Ответ]]),0) -> 0 | T39: 1 | U39: 0 | V39: 0 | W39: 0 | X39: Осведомлённость II | Y39: Общественно-политическая осведомленность
B40: 2 | C40: 2 | D40: =SubTests[[#This Row],[Субтест_№]]*100+SubTests[[#This Row],[Вопрос_№]] -> 202 | E40: Аннулирование - ... | F40: подписание | G40: отмена | H40: сообщение | I40: отсрочка | K40: 2 | L40: 0 | M40: 1 | N40: 0 | O40: 0 | P40: 0 | Q40: 1 | S40: =IFERROR(INDEX(SubTests[[#This Row],[Балл1]:[Балл5]],1,SubTests[[#This Row],[Ответ]]),0) -> 0 | T40: 1 | U40: 0 | V40: 0 | W40: 0 | X40: Осведомлённость II | Y40: Общественно-политическая осведомленность
B41: 3 | C41: 2 | D41: =SubTests[[#This Row],[Субтест_№]]*100+SubTests[[#This Row],[Вопрос_№]] -> 203 | E41: Идеал - ... | F41: фантазия | G41: будущее | H41: мудрость | I41: совершенство | K41: 4 | L41: 0 | M41: 0 | N41: 0 | O41: 1 | P41: 0 | Q41: 1 | S41: =IFERROR(INDEX(SubTests[[#This Row],[Балл1]:[Балл5]],1,SubTests[[#This Row],[Ответ]]),0) -> 0 | T41: 2 | U41: 0 | V41: 0 | W41: 0 | X41: Осведомлённость II | Y41: Hаучно-культурная осведомленность
B42: 4 | C42: 2 | D42: =SubTests[[#This Row],[Субтест_№]]*100+SubTests[[#This Row],[Вопрос_№]] -> 204 | E42: Аргумент - ... | F42: довод | G42: согласие | H42: спор | I42: фраза | K42: 1 | L42: 1 | M42: 0 | N42: 0 | O42: 0 | P42: 0 | Q42: 1 | S42: =IFERROR(INDEX(SubTests[[#This Row],[Балл1]:[Балл5]],1,SubTests[[#This Row],[Ответ]]),0) -> 0 | T42: 2 | U42: 0 | V42: 0 | W42: 0 | X42: Осведомлённость II | Y42: Hаучно-культурная осведомленность
B43: 5 | C43: 2 | D43: =SubTests[[#This Row],[Субтест_№]]*100+SubTests[[#This Row],[Вопрос_№]] -> 205 | E43: Миф - ... | F43: древность | G43: творчество | H43: предание | I43: наука | K43: 3 | L43: 0 | M43: 0 | N43: 1 | O43: 0 | P43: 0 | Q43: 1 | S43: =IFERROR(INDEX(SubTests[[#This Row],[Балл1]:[Балл5]],1,SubTests[[#This Row],[Ответ]]),0) -> 0 | T43: 2 | U43: 0 | V43: 0 | W43: 0 | X43: Осведомлённость II | Y43: Hаучно-культурная осведомленность
B44: 6 | C44: 2 | D44: =SubTests[[#This Row],[Субтест_№]]*100+SubTests[[#This Row],[Вопрос_№]] -> 206 | E44: Аморальный - ... | F44: устойчивый | G44: трудный | H44: неприятный | I44: безнравственный | K44: 4 | L44: 0 | M44: 0 | N44: 0 | O44: 1 | P44: 0 | Q44: 1 | S44: =IFERROR(INDEX(SubTests[[#This Row],[Балл1]:[Балл5]],1,SubTests[[#This Row],[Ответ]]),0) -> 0 | T44: 2 | U44: 0 | V44: 0 | W44: 0 | X44: Осведомлённость II | Y44: Hаучно-культурная осведомленность
B45: 7 | C45: 2 | D45: =SubTests[[#This Row],[Субтест_№]]*100+SubTests[[#This Row],[Вопрос_№]] -> 207 | E45: Анализ - ... | F45: факты | G45: разбор | H45: критика | I45: умение | K45: 2 | L45: 0 | M45: 1 | N45: 0 | O45: 0 | P45: 0 | Q45: 1 | S45: =IFERROR(INDEX(SubTests[[#This Row],[Балл1]:[Балл5]],1,SubTests[[#This Row],[Ответ]]),0) -> 0 | T45: 2 | U45: 0 | V45: 0 | W45: 0 | X45: Осведомлённость II | Y45: Hаучно-культурная осведомленность
B46: 8 | C46: 2 | D46: =SubTests[[#This Row],[Субтест_№]]*100+SubTests[[#This Row],[Вопрос_№]] -> 208 | E46: Эталон - ... | F46: копия | G46: форма | H46: основа | I46: образец | K46: 4 | L46: 0 | M46: 0 | N46: 0 | O46: 1 | P46: 0 | Q46: 1 | S46: =IFERROR(INDEX(SubTests[[#This Row],[Балл1]:[Балл5]],1,SubTests[[#This Row],[Ответ]]),0) -> 0 | T46: 2 | U46: 0 | V46: 0 | W46: 0 | X46: Осведомлённость II | Y46: Hаучно-культурная осведомленность
B47: 9 | C47: 2 | D47: =SubTests[[#This Row],[Субтест_№]]*100+SubTests[[#This Row],[Вопрос_№]] -> 209 | E47: Сферический - ... | F47: продолговатый | G47: шаровидный | H47: пустой | I47: объемный | K47: 2 | L47: 0 | M47: 1 | N47: 0 | O47: 0 | P47: 0 | Q47: 1 | S47: =IFERROR(INDEX(SubTests[[#This Row],[Балл1]:[Балл5]],1,SubTests[[#This Row],[Ответ]]),0) -> 0 | T47: 2 | U47: 0 | V47: 0 | W47: 0 | X47: Осведомлённость II | Y47: Hаучно-культурная осведомленность
B48: 10 | C48: 2 | D48: =SubTests[[#This Row],[Субтест_№]]*100+SubTests[[#This Row],[Вопрос_№]] -> 210 | E48: Социальный - ... | F48: принятый | G48: свободный | H48: запланированный | I48: общественный | K48: 4 | L48: 0 | M48: 0 | N48: 0 | O48: 1 | P48: 0 | Q48: 1 | S48: =IFERROR(INDEX(SubTests[[#This Row],[Балл1]:[Балл5]],1,SubTests[[#This Row],[Ответ]]),0) -> 0 | T48: 1 | U48: 0 | V48: 0 | W48: 0 | X48: Осведомлённость II | Y48: Общественно-политическая осведомленность
B49: 11 | C49: 2 | D49: =SubTests[[#This Row],[Субтест_№]]*100+SubTests[[#This Row],[Вопрос_№]] -> 211 | E49: Гравитация - ... | F49: притяжение | G49: отталкивание | H49: невесомость | I49: подъем | K49: 1 | L49: 1 | M49: 0 | N49: 0 | O49: 0 | P49: 0 | Q49: 1 | S49: =IFERROR(INDEX(SubTests[[#This Row],[Балл1]:[Балл5]],1,SubTests[[#This Row],[Ответ]]),0) -> 0 | T49: 2 | U49: 0 | V49: 0 | W49: 0 | X49: Осведомлённость II | Y49: Hаучно-культурная осведомленность
B50: 12 | C50: 2 | D50: =SubTests[[#This Row],[Субтест_№]]*100+SubTests[[#This Row],[Вопрос_№]] -> 212 | E50: Сентиментальный - ... | F50: поэтический | G50: чувствительный | H50: радостный | I50: странный | K50: 2 | L50: 0 | M50: 1 | N50: 0 | O50: 0 | P50: 0 | Q50: 1 | S50: =IFERROR(INDEX(SubTests[[#This Row],[Балл1]:[Балл5]],1,SubTests[[#This Row],[Ответ]]),0) -> 0 | T50: 2 | U50: 0 | V50: 0 | W50: 0 | X50: Осведомлённость II | Y50: Hаучно-культурная осведомленность
B51: 13 | C51: 2 | D51: =SubTests[[#This Row],[Субтест_№]]*100+SubTests[[#This Row],[Вопрос_№]] -> 213 | E51: Экспорт - ... | F51: продажа | G51: товары | H51: вывоз | I51: торговля | K51: 3 | L51: 0 | M51: 0 | N51: 1 | O51: 0 | P51: 0 | Q51: 1 | S51: =IFERROR(INDEX(SubTests[[#This Row],[Балл1]:[Балл5]],1,SubTests[[#This Row],[Ответ]]),0) -> 0 | T51: 1 | U51: 0 | V51: 0 | W51: 0 | X51: Осведомлённость II | Y51: Общественно-политическая осведомленность
B52: 14 | C52: 2 | D52: =SubTests[[#This Row],[Субтест_№]]*100+SubTests[[#This Row],[Вопрос_№]] -> 214 | E52: Эффективный - ... | F52: необходимый | G52: действенный | H52: решительный | I52: особый | K52: 4 | L52: 0 | M52: 0 | N52: 0 | O52: 1 | P52: 0 | Q52: 1 | S52: =IFERROR(INDEX(SubTests[[#This Row],[Балл1]:[Балл5]],1,SubTests[[#This Row],[Ответ]]),0) -> 0 | T52: 2 | U52: 0 | V52: 0 | W52: 0 | X52: Осведомлённость II | Y52: Hаучно-культурная осведомленность
B53: 15 | C53: 2 | D53: =SubTests[[#This Row],[Субтест_№]]*100+SubTests[[#This Row],[Вопрос_№]] -> 215 | E53: Мораль - ... | F53: этика | G53: развитие | H53: способность | I53: право | K53: 1 | L53: 1 | M53: 0 | N53: 0 | O53: 0 | P53: 0 | Q53: 1 | S53: =IFERROR(INDEX(SubTests[[#This Row],[Балл1]:[Балл5]],1,SubTests[[#This Row],[Ответ]]),0) -> 0 | T53: 2 | U53: 0 | V53: 0 | W53: 0 | X53: Осведомлённость II | Y53: Hаучно-культурная осведомленность
B54: 16 | C54: 2 | D54: =SubTests[[#This Row],[Субтест_№]]*100+SubTests[[#This Row],[Вопрос_№]] -> 216 | E54: Модифицировать - ... | F54: работать | G54: наблюдать | H54: изучать | I54: видоизменять | K54: 4 | L54: 0 | M54: 0 | N54: 0 | O54: 1 | P54: 0 | Q54: 1 | S54: =IFERROR(INDEX(SubTests[[#This Row],[Балл1]:[Балл5]],1,SubTests[[#This Row],[Ответ]]),0) -> 0 | T54: 2 | U54: 0 | V54: 0 | W54: 0 | X54: Осведомлённость II | Y54: Hаучно-культурная осведомленность
B55: 17 | C55: 2 | D55: =SubTests[[#This Row],[Субтест_№]]*100+SubTests[[#This Row],[Вопрос_№]] -> 217 | E55: Радикальный - ... | F55: коренной | G55: ответный | H55: последний | I55: отсталый | K55: 1 | L55: 1 | M55: 0 | N55: 0 | O55: 0 | P55: 0 | Q55: 1 | S55: =IFERROR(INDEX(SubTests[[#This Row],[Балл1]:[Балл5]],1,SubTests[[#This Row],[Ответ]]),0) -> 0 | T55: 1 | U55: 0 | V55: 0 | W55: 0 | X55: Осведомлённость II | Y55: Общественно-политическая осведомленность
B56: 18 | C56: 2 | D56: =SubTests[[#This Row],[Субтест_№]]*100+SubTests[[#This Row],[Вопрос_№]] -> 218 | E56: Негативный - ... | F56: неудачный | G56: ложный | H56: отрицательный | I56: неосторожный | K56: 3 | L56: 0 | M56: 0 | N56: 1 | O56: 0 | P56: 0 | Q56: 1 | S56: =IFERROR(INDEX(SubTests[[#This Row],[Балл1]:[Балл5]],1,SubTests[[#This Row],[Ответ]]),0) -> 0 | T56: 2 | U56: 0 | V56: 0 | W56: 0 | X56: Осведомлённость II | Y56: Hаучно-культурная осведомленность
B57: 19 | C57: 2 | D57: =SubTests[[#This Row],[Субтест_№]]*100+SubTests[[#This Row],[Вопрос_№]] -> 219 | E57: Субъективный - ... | F57: практический | G57: общественный | H57: личный | I57: скрытый | K57: 3 | L57: 0 | M57: 0 | N57: 1 | O57: 0 | P57: 0 | Q57: 1 | S57: =IFERROR(INDEX(SubTests[[#This Row],[Балл1]:[Балл5]],1,SubTests[[#This Row],[Ответ]]),0) -> 0 | T57: 2 | U57: 0 | V57: 0 | W57: 0 | X57: Осведомлённость II | Y57: Hаучно-культурная осведомленность
B58: 20 | C58: 2 | D58: =SubTests[[#This Row],[Субтест_№]]*100+SubTests[[#This Row],[Вопрос_№]] -> 220 | E58: Аграрный - ... | F58: местный | G58: хозяйственный | H58: земельный | I58: крестьянский | K58: 3 | L58: 0 | M58: 0 | N58: 1 | O58: 0 | P58: 0 | Q58: 1 | S58: =IFERROR(INDEX(SubTests[[#This Row],[Балл1]:[Балл5]],1,SubTests[[#This Row],[Ответ]]),0) -> 0 | T58: 1 | U58: 0 | V58: 0 | W58: 0 | X58: Осведомлённость II | Y58: Общественно-политическая осведомленность
B59: 1 | C59: 3 | D59: =SubTests[[#This Row],[Субтест_№]]*100+SubTests[[#This Row],[Вопрос_№]] -> 301 | E59: Глагол - спрягать : существительное - … | F59: изменять | G59: образовывать | H59: употреблять | I59: склонять | J59: писать | K59: 4 | L59: 0 | M59: 0 | N59: 0 | O59: 1 | P59: 0 | Q59: 1 | S59: =IFERROR(INDEX(SubTests[[#This Row],[Балл1]:[Балл5]],1,SubTests[[#This Row],[Ответ]]),0) -> 0 | T59: 0 | U59: 7 | V59: 0 | W59: 1 | X59: Аналогии | Z59: Литература, русский язык | AA59: Функциональные отношения
B60: 2 | C60: 3 | D60: =SubTests[[#This Row],[Субтест_№]]*100+SubTests[[#This Row],[Вопрос_№]] -> 302 | E60: Холодно - горячо : движение - ... | F60: инерция | G60: покой | H60: молекула | I60: взаимодействие | K60: 2 | L60: 0 | M60: 1 | N60: 0 | O60: 0 | P60: 0 | Q60: 1 | S60: =IFERROR(INDEX(SubTests[[#This Row],[Балл1]:[Балл5]],1,SubTests[[#This Row],[Ответ]]),0) -> 0 | T60: 0 | U60: 4 | V60: 0 | W60: 2 | X60: Аналогии | Z60: Математика, физика | AA60: Противоположность
B61: 3 | C61: 3 | D61: =SubTests[[#This Row],[Субтест_№]]*100+SubTests[[#This Row],[Вопрос_№]] -> 303 | E61: Колумб - путешественник : землятресение - ... | F61: первооткрыватель | G61: образование гор | H61: извержение | I61: жертвы | J61: природное явлениe | K61: 5 | L61: 0 | M61: 0 | N61: 0 | O61: 0 | P61: 1 | Q61: 1 | S61: =IFERROR(INDEX(SubTests[[#This Row],[Балл1]:[Балл5]],1,SubTests[[#This Row],[Ответ]]),0) -> 0 | T61: 0 | U61: 1 | V61: 0 | W61: 5 | X61: Аналогии | Z61: География | AA61: Род - вид
B62: 4 | C62: 3 | D62: =SubTests[[#This Row],[Субтест_№]]*100+SubTests[[#This Row],[Вопрос_№]] -> 304 | E62: Слагаемое - сумма : множители - ... | F62: разность | G62: делитель | H62: произведение | I62: умножение | J62: число | K62: 3 | L62: 0 | M62: 0 | N62: 1 | O62: 0 | P62: 0 | Q62: 1 | S62: =IFERROR(INDEX(SubTests[[#This Row],[Балл1]:[Балл5]],1,SubTests[[#This Row],[Ответ]]),0) -> 0 | T62: 0 | U62: 7 | V62: 0 | W62: 2 | X62: Аналогии | Z62: Математика, физика | AA62: Функциональные отношения
B63: 5 | C63: 3 | D63: =SubTests[[#This Row],[Субтест_№]]*100+SubTests[[#This Row],[Вопрос_№]] -> 305 | E63: Рабовладельцы - буржуазия : рабы - ... | F63: рабовладельческий строй | G63: буржуазия | H63: рабовладельцы | I63: наемные рабочие | J63: пленные | K63: 4 | L63: 0 | M63: 0 | N63: 0 | O63: 1 | P63: 0 | Q63: 1 | S63: =IFERROR(INDEX(SubTests[[#This Row],[Балл1]:[Балл5]],1,SubTests[[#This Row],[Ответ]]),0) -> 0 | T63: 0 | U63: 6 | V63: 0 | W63: 3 | X63: Аналогии | Z63: История | AA63: Родоположенность
B64: 6 | C64: 3 | D64: =SubTests[[#This Row],[Субтест_№]]*100+SubTests[[#This Row],[Вопрос_№]] -> 306 | E64: Папоротник - спора : сосна - ... | F64: шишка | G64: иголка | H64: растение | I64: семя | J64: ель | K64: 4 | L64: 0 | M64: 0 | N64: 0 | O64: 1 | P64: 0 | Q64: 1 | S64: =IFERROR(INDEX(SubTests[[#This Row],[Балл1]:[Балл5]],1,SubTests[[#This Row],[Ответ]]),0) -> 0 | T64: 0 | U64: 7 | V64: 0 | W64: 4 | X64: Аналогии | Z64: Биология | AA64: Функциональные отношения
B65: 7 | C65: 3 | D65: =SubTests[[#This Row],[Субтест_№]]*100+SubTests[[#This Row],[Вопрос_№]] -> 307 | E65: Стихотворение - поэзия : рассказ - ... | F65: книга | G65: писатель | H65: повесть | I65: предложение | J65: проза | K65: 5 | L65: 0 | M65: 0 | N65: 0 | O65: 0 | P65: 1 | Q65: 1 | S65: =IFERROR(INDEX(SubTests[[#This Row],[Балл1]:[Балл5]],1,SubTests[[#This Row],[Ответ]]),0) -> 0 | T65: 0 | U65: 1 | V65: 0 | W65: 1 | X65: Аналогии | Z65: Литература, русский язык | AA65: Род - вид
B66: 8 | C66: 3 | D66: =SubTests[[#This Row],[Субтест_№]]*100+SubTests[[#This Row],[Вопрос_№]] -> 308 | E66: Горы - высота : климат - ... | F66: рельеф | G66: температура | H66: природа | I66: географическая широта | J66: растительность | K66: 2 | L66: 0 | M66: 1 | N66: 0 | O66: 0 | P66: 0 | Q66: 1 | S66: =IFERROR(INDEX(SubTests[[#This Row],[Балл1]:[Балл5]],1,SubTests[[#This Row],[Ответ]]),0) -> 0 | T66: 0 | U66: 7 | V66: 0 | W66: 5 | X66: Аналогии | Z66: География | AA66: Функциональные отношения
B67: 9 | C67: 3 | D67: =SubTests[[#This Row],[Субтест_№]]*100+SubTests[[#This Row],[Вопрос_№]] -> 309 | E67: Растение - стебель : клетка - ... | F67: ядро | G67: хромосома | H67: белок | I67: фермент | J67: деление | K67: 1 | L67: 1 | M67: 0 | N67: 0 | O67: 0 | P67: 0 | Q67: 1 | S67: =IFERROR(INDEX(SubTests[[#This Row],[Балл1]:[Балл5]],1,SubTests[[#This Row],[Ответ]]),0) -> 0 | T67: 0 | U67: 2 | V67: 0 | W67: 4 | X67: Аналогии | Z67: Биология | AA67: Часть - целое
B68: 10 | C68: 3 | D68: =SubTests[[#This Row],[Субтест_№]]*100+SubTests[[#This Row],[Вопрос_№]] -> 310 | E68: Богатство - бедность : крепостная зависимость - ... | F68: крепостные крестьяне | G68: личная свобода | H68: неравенство | I68: частная собственность | J68: феодальный строй | K68: 2 | L68: 0 | M68: 1 | N68: 0 | O68: 0 | P68: 0 | Q68: 1 | S68: =IFERROR(INDEX(SubTests[[#This Row],[Балл1]:[Балл5]],1,SubTests[[#This Row],[Ответ]]),0) -> 0 | T68: 0 | U68: 4 | V68: 0 | W68: 3 | X68: Аналогии | Z68: История | AA68: Противоположность
B69: 11 | C69: 3 | D69: =SubTests[[#This Row],[Субтест_№]]*100+SubTests[[#This Row],[Вопрос_№]] -> 311 | E69: Старт - финиш : пролог - ... | F69: заголовок | G69: введение | H69: кульминация | I69: действие | J69: эпилог | K69: 5 | L69: 0 | M69: 0 | N69: 0 | O69: 0 | P69: 1 | Q69: 1 | S69: =IFERROR(INDEX(SubTests[[#This Row],[Балл1]:[Балл5]],1,SubTests[[#This Row],[Ответ]]),0) -> 0 | T69: 0 | U69: 4 | V69: 0 | W69: 1 | X69: Аналогии | Z69: Литература, русский язык | AA69: Противоположность
B70: 12 | C70: 3 | D70: =SubTests[[#This Row],[Субтест_№]]*100+SubTests[[#This Row],[Вопрос_№]] -> 312 | E70: Молния - свет : явление тяготения - ... | F70: камень | G70: движение | H70: сила тяжести | I70: вес | J70: Земля | K70: 3 | L70: 0 | M70: 0 | N70: 1 | O70: 0 | P70: 0 | Q70: 1 | S70: =IFERROR(INDEX(SubTests[[#This Row],[Балл1]:[Балл5]],1,SubTests[[#This Row],[Ответ]]),0) -> 0 | T70: 0 | U70: 3 | V70: 0 | W70: 2 | X70: Аналогии | Z70: Математика, физика | AA70: Причина - следствие
B71: 13 | C71: 3 | D71: =SubTests[[#This Row],[Субтест_№]]*100+SubTests[[#This Row],[Вопрос_№]] -> 313 | E71: Первобытно-общинный строй - рабовладельческий строй : рабовладельческий строй - ... | F71: социализм | G71: капитализм | H71: рабовладельцы | I71: государство | J71: феодализм | K71: 5 | L71: 0 | M71: 0 | N71: 0 | O71: 0 | P71: 1 | Q71: 1 | S71: =IFERROR(INDEX(SubTests[[#This Row],[Балл1]:[Балл5]],1,SubTests[[#This Row],[Ответ]]),0) -> 0 | T71: 0 | U71: 5 | V71: 0 | W71: 3 | X71: Аналогии | Z71: История | AA71: Порядок следования
B72: 14 | C72: 3 | D72: =SubTests[[#This Row],[Субтест_№]]*100+SubTests[[#This Row],[Вопрос_№]] -> 314 | E72: Роман - глава : стихотворение - ... | F72: поэма | G72: рифма | H72: строфа | I72: ритм | J72: жанр | K72: 3 | L72: 0 | M72: 0 | N72: 1 | O72: 0 | P72: 0 | Q72: 1 | S72: =IFERROR(INDEX(SubTests[[#This Row],[Балл1]:[Балл5]],1,SubTests[[#This Row],[Ответ]]),0) -> 0 | T72: 0 | U72: 2 | V72: 0 | W72: 1 | X72: Аналогии | Z72: Литература, русский язык | AA72: Часть - целое
B73: 15 | C73: 3 | D73: =SubTests[[#This Row],[Субтест_№]]*100+SubTests[[#This Row],[Вопрос_№]] -> 315 | E73: Тепло - жизнедеятельность : кислород - ... | F73: газ | G73: вода | H73: растение | I73: развитие | J73: дыхание | K73: 5 | L73: 0 | M73: 0 | N73: 0 | O73: 0 | P73: 1 | Q73: 1 | S73: =IFERROR(INDEX(SubTests[[#This Row],[Балл1]:[Балл5]],1,SubTests[[#This Row],[Ответ]]),0) -> 0 | T73: 0 | U73: 7 | V73: 0 | W73: 4 | X73: Аналогии | Z73: Биология | AA73: Функциональные отношения
B74: 16 | C74: 3 | D74: =SubTests[[#This Row],[Субтест_№]]*100+SubTests[[#This Row],[Вопрос_№]] -> 316 | E74: Фигура - треугольник : состояние вещества - ... | F74: жидкость | G74: движение | H74: температура | I74: вода | J74: молекула | K74: 1 | L74: 1 | M74: 0 | N74: 0 | O74: 0 | P74: 0 | Q74: 1 | S74: =IFERROR(INDEX(SubTests[[#This Row],[Балл1]:[Балл5]],1,SubTests[[#This Row],[Ответ]]),0) -> 0 | T74: 0 | U74: 1 | V74: 0 | W74: 2 | X74: Аналогии | Z74: Математика, физика | AA74: Род - вид
B75: 17 | C75: 3 | D75: =SubTests[[#This Row],[Субтест_№]]*100+SubTests[[#This Row],[Вопрос_№]] -> 317 | E75: Роза - цветок : капиталист - ... | F75: эксплуатация | G75: рабочие | H75: капитализм | I75: класс | J75: фабрика | K75: 4 | L75: 0 | M75: 0 | N75: 0 | O75: 1 | P75: 0 | Q75: 1 | S75: =IFERROR(INDEX(SubTests[[#This Row],[Балл1]:[Балл5]],1,SubTests[[#This Row],[Ответ]]),0) -> 0 | T75: 0 | U75: 1 | V75: 0 | W75: 3 | X75: Аналогии | Z75: История | AA75: Род - вид
B76: 18 | C76: 3 | D76: =SubTests[[#This Row],[Субтест_№]]*100+SubTests[[#This Row],[Вопрос_№]] -> 318 | E76: Понижение атмосферного давления - осадки : антициклон - ... | F76: ясная погода | G76: циклон | H76: климат | I76: влажность | J76: метеослужба | K76: 1 | L76: 1 | M76: 0 | N76: 0 | O76: 0 | P76: 0 | Q76: 1 | S76: =IFERROR(INDEX(SubTests[[#This Row],[Балл1]:[Балл5]],1,SubTests[[#This Row],[Ответ]]),0) -> 0 | T76: 0 | U76: 3 | V76: 0 | W76: 5 | X76: Аналогии | Z76: География | AA76: Причина - следствие
B77: 19 | C77: 3 | D77: =SubTests[[#This Row],[Субтест_№]]*100+SubTests[[#This Row],[Вопрос_№]] -> 319 | E77: Прямоугольник - плоскость : куб - ... | F77: пространство | G77: ребро | H77: высота | I77: треугольник | J77: сторона | K77: 1 | L77: 1 | M77: 0 | N77: 0 | O77: 0 | P77: 0 | Q77: 1 | S77: =IFERROR(INDEX(SubTests[[#This Row],[Балл1]:[Балл5]],1,SubTests[[#This Row],[Ответ]]),0) -> 0 | T77: 0 | U77: 7 | V77: 0 | W77: 2 | X77: Аналогии | Z77: Математика, физика | AA77: Функциональные отношения
B78: 20 | C78: 3 | D78: =SubTests[[#This Row],[Субтест_№]]*100+SubTests[[#This Row],[Вопрос_№]] -> 320 | E78: Война - смерть : частная собственность - ... | F78: феодалы | G78: капитализм | H78: неравенство | I78: рабы | J78: крепостные крестьяне | K78: 3 | L78: 0 | M78: 0 | N78: 1 | O78: 0 | P78: 0 | Q78: 1 | S78: =IFERROR(INDEX(SubTests[[#This Row],[Балл1]:[Балл5]],1,SubTests[[#This Row],[Ответ]]),0) -> 0 | T78: 0 | U78: 3 | V78: 0 | W78: 3 | X78: Аналогии | Z78: История | AA78: Причина - следствие
B79: 21 | C79: 3 | D79: =SubTests[[#This Row],[Субтест_№]]*100+SubTests[[#This Row],[Вопрос_№]] -> 321 | E79: Числительное - количество : глагол - ... | F79: идти | G79: действие | H79: причастие | I79: часть речи | J79: спрягать | K79: 2 | L79: 0 | M79: 1 | N79: 0 | O79: 0 | P79: 0 | Q79: 1 | S79: =IFERROR(INDEX(SubTests[[#This Row],[Балл1]:[Балл5]],1,SubTests[[#This Row],[Ответ]]),0) -> 0 | T79: 0 | U79: 7 | V79: 0 | W79: 1 | X79: Аналогии | Z79: Литература, русский язык | AA79: Функциональные отношения
B80: 22 | C80: 3 | D80: =SubTests[[#This Row],[Субтест_№]]*100+SubTests[[#This Row],[Вопрос_№]] -> 322 | E80: Север - юг : осадки - ... | F80: пустыня | G80: полюс | H80: дождь | I80: засуха | J80: климат | K80: 4 | L80: 0 | M80: 0 | N80: 0 | O80: 1 | P80: 0 | Q80: 1 | S80: =IFERROR(INDEX(SubTests[[#This Row],[Балл1]:[Балл5]],1,SubTests[[#This Row],[Ответ]]),0) -> 0 | T80: 0 | U80: 4 | V80: 0 | W80: 5 | X80: Аналогии | Z80: География | AA80: Противоположность
B81: 23 | C81: 3 | D81: =SubTests[[#This Row],[Субтест_№]]*100+SubTests[[#This Row],[Вопрос_№]] -> 323 | E81: Диаметр - радиус : окружность - ... | F81: дуга | G81: сегмент | H81: отрезок | I81: линия | J81: круг | K81: 1 | L81: 1 | M81: 0 | N81: 0 | O81: 0 | P81: 0 | Q81: 1 | S81: =IFERROR(INDEX(SubTests[[#This Row],[Балл1]:[Балл5]],1,SubTests[[#This Row],[Ответ]]),0) -> 0 | T81: 0 | U81: 2 | V81: 0 | W81: 2 | X81: Аналогии | Z81: Математика, физика | AA81: Часть - целое
B82: 24 | C82: 3 | D82: =SubTests[[#This Row],[Субтест_№]]*100+SubTests[[#This Row],[Вопрос_№]] -> 324 | E82: Эпителий - ткань : аорта - ... | F82: сердце | G82: внутренний орган | H82: артерия | I82: вена | J82: кровь | K82: 3 | L82: 0 | M82: 0 | N82: 1 | O82: 0 | P82: 0 | Q82: 1 | S82: =IFERROR(INDEX(SubTests[[#This Row],[Балл1]:[Балл5]],1,SubTests[[#This Row],[Ответ]]),0) -> 0 | T82: 0 | U82: 1 | V82: 0 | W82: 4 | X82: Аналогии | Z82: Биология | AA82: Род - вид
B83: 25 | C83: 3 | D83: =SubTests[[#This Row],[Субтест_№]]*100+SubTests[[#This Row],[Вопрос_№]] -> 325 | E83: Молоток - забивать : генератор - ... | F83: соединять | G83: производить | H83: включать | I83: изменять | J83: нагревать | K83: 2 | L83: 0 | M83: 1 | N83: 0 | O83: 0 | P83: 0 | Q83: 1 | S83: =IFERROR(INDEX(SubTests[[#This Row],[Балл1]:[Балл5]],1,SubTests[[#This Row],[Ответ]]),0) -> 0 | T83: 0 | U83: 7 | V83: 0 | W83: 2 | X83: Аналогии | Z83: Математика, физика | AA83: Функциональные отношения
B84: 1 | C84: 4 | D84: =SubTests[[#This Row],[Субтест_№]]*100+SubTests[[#This Row],[Вопрос_№]] -> 401 | F84: приставка | G84: предлог | H84: суффикс | I84: окончание | J84: корень | K84: 2 | L84: 0 | M84: 1 | N84: 0 | O84: 0 | P84: 0 | Q84: 1 | S84: =IFERROR(INDEX(SubTests[[#This Row],[Балл1]:[Балл5]],1,SubTests[[#This Row],[Ответ]]),0) -> 0 | T84: 0 | U84: 0 | V84: 3 | W84: 1 | X84: Классификация | Z84: Литература, русский язык | AB84: Задания с конкретными понятиями
B85: 2 | C85: 4 | D85: =SubTests[[#This Row],[Субтест_№]]*100+SubTests[[#This Row],[Вопрос_№]] -> 402 | F85: прямая | G85: ромб | H85: прямоугольник | I85: квадрат | J85: треугольник | K85: 1 | L85: 1 | M85: 0 | N85: 0 | O85: 0 | P85: 0 | Q85: 1 | S85: =IFERROR(INDEX(SubTests[[#This Row],[Балл1]:[Балл5]],1,SubTests[[#This Row],[Ответ]]),0) -> 0 | T85: 0 | U85: 0 | V85: 3 | W85: 2 | X85: Классификация | Z85: Математика, физика | AB85: Задания с конкретными понятиями
B86: 3 | C86: 4 | D86: =SubTests[[#This Row],[Субтест_№]]*100+SubTests[[#This Row],[Вопрос_№]] -> 403 | F86: барометр | G86: флюгер | H86: термометр | I86: компас | J86: азимут | K86: 5 | L86: 0 | M86: 0 | N86: 0 | O86: 0 | P86: 1 | Q86: 1 | S86: =IFERROR(INDEX(SubTests[[#This Row],[Балл1]:[Балл5]],1,SubTests[[#This Row],[Ответ]]),0) -> 0 | T86: 0 | U86: 0 | V86: 2 | W86: 5 | X86: Классификация | Z86: География | AB86: Смешанные задания
B87: 4 | C87: 4 | D87: =SubTests[[#This Row],[Субтест_№]]*100+SubTests[[#This Row],[Вопрос_№]] -> 404 | F87: рабовладелец | G87: раб | H87: крестьянин | I87: рабочий | J87: ремесленник | K87: 1 | L87: 1 | M87: 0 | N87: 0 | O87: 0 | P87: 0 | Q87: 1 | S87: =IFERROR(INDEX(SubTests[[#This Row],[Балл1]:[Балл5]],1,SubTests[[#This Row],[Ответ]]),0) -> 0 | T87: 0 | U87: 0 | V87: 3 | W87: 3 | X87: Классификация | Z87: История | AB87: Задания с конкретными понятиями
B88: 5 | C88: 4 | D88: =SubTests[[#This Row],[Субтест_№]]*100+SubTests[[#This Row],[Вопрос_№]] -> 405 | F88: пословица | G88: стихотворение | H88: поэма | I88: рассказ | J88: повесть | K88: 1 | L88: 1 | M88: 0 | N88: 0 | O88: 0 | P88: 0 | Q88: 1 | S88: =IFERROR(INDEX(SubTests[[#This Row],[Балл1]:[Балл5]],1,SubTests[[#This Row],[Ответ]]),0) -> 0 | T88: 0 | U88: 0 | V88: 3 | W88: 1 | X88: Классификация | Z88: Литература, русский язык | AB88: Задания с конкретными понятиями
B89: 6 | C89: 4 | D89: =SubTests[[#This Row],[Субтест_№]]*100+SubTests[[#This Row],[Вопрос_№]] -> 406 | F89: цитоплазма | G89: питание | H89: рост | I89: раздражимость | J89: раздражение | K89: 1 | L89: 1 | M89: 0 | N89: 0 | O89: 0 | P89: 0 | Q89: 1 | S89: =IFERROR(INDEX(SubTests[[#This Row],[Балл1]:[Балл5]],1,SubTests[[#This Row],[Ответ]]),0) -> 0 | T89: 0 | U89: 0 | V89: 2 | W89: 4 | X89: Классификация | Z89: Биология | AB89: Смешанные задания
B90: 7 | C90: 4 | D90: =SubTests[[#This Row],[Субтест_№]]*100+SubTests[[#This Row],[Вопрос_№]] -> 407 | F90: дождь | G90: снег | H90: осадки | I90: иней | J90: град | K90: 3 | L90: 0 | M90: 0 | N90: 1 | O90: 0 | P90: 0 | Q90: 1 | S90: =IFERROR(INDEX(SubTests[[#This Row],[Балл1]:[Балл5]],1,SubTests[[#This Row],[Ответ]]),0) -> 0 | T90: 0 | U90: 0 | V90: 2 | W90: 5 | X90: Классификация | Z90: География | AB90: Смешанные задания
B91: 8 | C91: 4 | D91: =SubTests[[#This Row],[Субтест_№]]*100+SubTests[[#This Row],[Вопрос_№]] -> 408 | F91: треугольник | G91: отрезок | H91: длина | I91: квадрат | J91: круг | K91: 3 | L91: 0 | M91: 0 | N91: 1 | O91: 0 | P91: 0 | Q91: 1 | S91: =IFERROR(INDEX(SubTests[[#This Row],[Балл1]:[Балл5]],1,SubTests[[#This Row],[Ответ]]),0) -> 0 | T91: 0 | U91: 0 | V91: 2 | W91: 2 | X91: Классификация | Z91: Математика, физика | AB91: Смешанные задания
B92: 9 | C92: 4 | D92: =SubTests[[#This Row],[Субтест_№]]*100+SubTests[[#This Row],[Вопрос_№]] -> 409 | F92: пейзаж | G92: мозаика | H92: икона | I92: фреска | J92: кисть | K92: 5 | L92: 0 | M92: 0 | N92: 0 | O92: 0 | P92: 1 | Q92: 1 | S92: =IFERROR(INDEX(SubTests[[#This Row],[Балл1]:[Балл5]],1,SubTests[[#This Row],[Ответ]]),0) -> 0 | T92: 0 | U92: 0 | V92: 3 | W92: 3 | X92: Классификация | Z92: История | AB92: Задания с конкретными понятиями
B93: 10 | C93: 4 | D93: =SubTests[[#This Row],[Субтест_№]]*100+SubTests[[#This Row],[Вопрос_№]] -> 410 | F93: очерк | G93: роман | H93: рассказ | I93: сюжет | J93: повесть | K93: 4 | L93: 0 | M93: 0 | N93: 0 | O93: 1 | P93: 0 | Q93: 1 | S93: =IFERROR(INDEX(SubTests[[#This Row],[Балл1]:[Балл5]],1,SubTests[[#This Row],[Ответ]]),0) -> 0 | T93: 0 | U93: 0 | V93: 3 | W93: 1 | X93: Классификация | Z93: Литература, русский язык | AB93: Задания с конкретными понятиями
B94: 11 | C94: 4 | D94: =SubTests[[#This Row],[Субтест_№]]*100+SubTests[[#This Row],[Вопрос_№]] -> 411 | F94: параллель | G94: карта | H94: меридиан | I94: экватор | J94: полюс | K94: 2 | L94: 0 | M94: 1 | N94: 0 | O94: 0 | P94: 0 | Q94: 1 | S94: =IFERROR(INDEX(SubTests[[#This Row],[Балл1]:[Балл5]],1,SubTests[[#This Row],[Ответ]]),0) -> 0 | T94: 0 | U94: 0 | V94: 2 | W94: 5 | X94: Классификация | Z94: География | AB94: Смешанные задания
B95: 12 | C95: 4 | D95: =SubTests[[#This Row],[Субтест_№]]*100+SubTests[[#This Row],[Вопрос_№]] -> 412 | F95: литература | G95: наука | H95: живопись | I95: зодчество | J95: художественное ремесло | K95: 2 | L95: 0 | M95: 1 | N95: 0 | O95: 0 | P95: 0 | Q95: 1 | S95: =IFERROR(INDEX(SubTests[[#This Row],[Балл1]:[Балл5]],1,SubTests[[#This Row],[Ответ]]),0) -> 0 | T95: 0 | U95: 0 | V95: 1 | W95: 3 | X95: Классификация | Z95: История | AB95: Задания с абстрактными понятиями
B96: 13 | C96: 4 | D96: =SubTests[[#This Row],[Субтест_№]]*100+SubTests[[#This Row],[Вопрос_№]] -> 413 | F96: длина | G96: метр | H96: масса | I96: объем | J96: скорость | K96: 2 | L96: 0 | M96: 1 | N96: 0 | O96: 0 | P96: 0 | Q96: 1 | S96: =IFERROR(INDEX(SubTests[[#This Row],[Балл1]:[Балл5]],1,SubTests[[#This Row],[Ответ]]),0) -> 0 | T96: 0 | U96: 0 | V96: 2 | W96: 2 | X96: Классификация | Z96: Математика, физика | AB96: Смешанные задания
B97: 14 | C97: 4 | D97: =SubTests[[#This Row],[Субтест_№]]*100+SubTests[[#This Row],[Вопрос_№]] -> 414 | F97: углекислый газ | G97: свет | H97: вода | I97: крахмал | J97: хлорофилл | K97: 4 | L97: 0 | M97: 0 | N97: 0 | O97: 1 | P97: 0 | Q97: 1 | S97: =IFERROR(INDEX(SubTests[[#This Row],[Балл1]:[Балл5]],1,SubTests[[#This Row],[Ответ]]),0) -> 0 | T97: 0 | U97: 0 | V97: 3 | W97: 4 | X97: Классификация | Z97: Биология | AB97: Задания с конкретными понятиями
B98: 15 | C98: 4 | D98: =SubTests[[#This Row],[Субтест_№]]*100+SubTests[[#This Row],[Вопрос_№]] -> 415 | F98: пролог | G98: кульминация | H98: информация | I98: развязка | J98: эпилог | K98: 3 | L98: 0 | M98: 0 | N98: 1 | O98: 0 | P98: 0 | Q98: 1 | S98: =IFERROR(INDEX(SubTests[[#This Row],[Балл1]:[Балл5]],1,SubTests[[#This Row],[Ответ]]),0) -> 0 | T98: 0 | U98: 0 | V98: 1 | W98: 1 | X98: Классификация | Z98: Литература, русский язык | AB98: Задания с абстрактными понятиями
B99: 16 | C99: 4 | D99: =SubTests[[#This Row],[Субтест_№]]*100+SubTests[[#This Row],[Вопрос_№]] -> 416 | F99: скорость | G99: колебания | H99: сила | I99: вес | J99: плотность | K99: 2 | L99: 0 | M99: 1 | N99: 0 | O99: 0 | P99: 0 | Q99: 1 | S99: =IFERROR(INDEX(SubTests[[#This Row],[Балл1]:[Балл5]],1,SubTests[[#This Row],[Ответ]]),0) -> 0 | T99: 0 | U99: 0 | V99: 1 | W99: 2 | X99: Классификация | Z99: Математика, физика | AB99: Задания с абстрактными понятиями
B100: 17 | C100: 4 | D100: =SubTests[[#This Row],[Субтест_№]]*100+SubTests[[#This Row],[Вопрос_№]] -> 417 | F100: Куба | G100: Япония | H100: Вьетнам | I100: Великобритания | J100: Исландия | K100: 3 | L100: 0 | M100: 0 | N100: 1 | O100: 0 | P100: 0 | Q100: 1 | S100: =IFERROR(INDEX(SubTests[[#This Row],[Балл1]:[Балл5]],1,SubTests[[#This Row],[Ответ]]),0) -> 0 | T100: 0 | U100: 0 | V100: 3 | W100: 5 | X100: Классификация | Z100: География | AB100: Задания с конкретными понятиями
B101: 18 | C101: 4 | D101: =SubTests[[#This Row],[Субтест_№]]*100+SubTests[[#This Row],[Вопрос_№]] -> 418 | F101: товар | G101: город | H101: ярмарка | I101: натуральное хозяйство | J101: деньги | K101: 4 | L101: 0 | M101: 0 | N101: 0 | O101: 1 | P101: 0 | Q101: 1 | S101: =IFERROR(INDEX(SubTests[[#This Row],[Балл1]:[Балл5]],1,SubTests[[#This Row],[Ответ]]),0) -> 0 | T101: 0 | U101: 0 | V101: 2 | W101: 3 | X101: Классификация | Z101: История | AB101: Смешанные задания
B102: 19 | C102: 4 | D102: =SubTests[[#This Row],[Субтест_№]]*100+SubTests[[#This Row],[Вопрос_№]] -> 419 | F102: описание | G102: сравнение | H102: характеристика | I102: сказка | J102: иносказание | K102: 4 | L102: 0 | M102: 0 | N102: 0 | O102: 1 | P102: 0 | Q102: 1 | S102: =IFERROR(INDEX(SubTests[[#This Row],[Балл1]:[Балл5]],1,SubTests[[#This Row],[Ответ]]),0) -> 0 | T102: 0 | U102: 0 | V102: 1 | W102: 1 | X102: Классификация | Z102: Литература, русский язык | AB102: Задания с абстрактными понятиями
B103: 20 | C103: 4 | D103: =SubTests[[#This Row],[Субтест_№]]*100+SubTests[[#This Row],[Вопрос_№]] -> 420 | F103: аорта | G103: вена | H103: сердце | I103: артерия | J103: капилляр | K103: 3 | L103: 0 | M103: 0 | N103: 1 | O103: 0 | P103: 0 | Q103: 1 | S103: =IFERROR(INDEX(SubTests[[#This Row],[Балл1]:[Балл5]],1,SubTests[[#This Row],[Ответ]]),0) -> 0 | T103: 0 | U103: 0 | V103: 3 | W103: 4 | X103: Классификация | Z103: Биология | AB103: Задания с конкретными понятиями
B104: 1 | C104: 5 | D104: =SubTests[[#This Row],[Субтест_№]]*100+SubTests[[#This Row],[Вопрос_№]] -> 501 | E104: Азия - Африка | F104: Части света | G104: Материки, континенты | H104: Страны, экватор, климат | K104: 1 | L104: 2 | M104: 1 | N104: 0 | O104: 0 | P104: 0 | Q104: 2 | S104: =IFERROR(INDEX(SubTests[[#This Row],[Балл1]:[Балл5]],1,SubTests[[#This Row],[Ответ]]),0) -> 0 | T104: 0 | U104: 0 | V104: 0 | W104: 5 | X104: Обобщение | Z104: География
B105: 2 | C105: 5 | D105: =SubTests[[#This Row],[Субтест_№]]*100+SubTests[[#This Row],[Вопрос_№]] -> 502 | E105: Ботаника - зоология | F105: Биология, наука о живой природе | G105: Наука, предмет | H105: Природа | K105: 1 | L105: 2 | M105: 1 | N105: 0 | O105: 0 | P105: 0 | Q105: 2 | S105: =IFERROR(INDEX(SubTests[[#This Row],[Балл1]:[Балл5]],1,SubTests[[#This Row],[Ответ]]),0) -> 0 | T105: 0 | U105: 0 | V105: 0 | W105: 4 | X105: Обобщение | Z105: Биология
B106: 3 | C106: 5 | D106: =SubTests[[#This Row],[Субтест_№]]*100+SubTests[[#This Row],[Вопрос_№]] -> 503 | E106: Феодализм - капитализм | F106: Общественный строй, социально-экономическая формация | G106: Общество, ступени развития | H106: Классы, история, буржуазия, угнетение | K106: 1 | L106: 2 | M106: 1 | N106: 0 | O106: 0 | P106: 0 | Q106: 2 | S106: =IFERROR(INDEX(SubTests[[#This Row],[Балл1]:[Балл5]],1,SubTests[[#This Row],[Ответ]]),0) -> 0 | T106: 0 | U106: 0 | V106: 0 | W106: 3 | X106: Обобщение | Z106: История
B107: 4 | C107: 5 | D107: =SubTests[[#This Row],[Субтест_№]]*100+SubTests[[#This Row],[Вопрос_№]] -> 504 | E107: Сказка - былина | F107: Устное народное творчество, фольклор | G107: Литература, мудрость, творчество | H107: Предание, выдумка, легенда, миф | K107: 1 | L107: 2 | M107: 1 | N107: 0 | O107: 0 | P107: 0 | Q107: 2 | S107: =IFERROR(INDEX(SubTests[[#This Row],[Балл1]:[Балл5]],1,SubTests[[#This Row],[Ответ]]),0) -> 0 | T107: 0 | U107: 0 | V107: 0 | W107: 1 | X107: Обобщение | Z107: Литература, русский язык
B108: 5 | C108: 5 | D108: =SubTests[[#This Row],[Субтест_№]]*100+SubTests[[#This Row],[Вопрос_№]] -> 505 | E108: Газ - жидкость | F108: Состояние вещества, агрегатное состояние вещества | G108: Вещество, состояние тела | H108: Химия, физика | K108: 1 | L108: 2 | M108: 1 | N108: 0 | O108: 0 | P108: 0 | Q108: 2 | S108: =IFERROR(INDEX(SubTests[[#This Row],[Балл1]:[Балл5]],1,SubTests[[#This Row],[Ответ]]),0) -> 0 | T108: 0 | U108: 0 | V108: 0 | W108: 2 | X108: Обобщение | Z108: Математика, физика
B109: 6 | C109: 5 | D109: =SubTests[[#This Row],[Субтест_№]]*100+SubTests[[#This Row],[Вопрос_№]] -> 506 | E109: Сердце - артерия | F109: Органы кровообращения | G109: Внутренние органы, органы человека | H109: Биология, сосуды, анатомия, части тела | K109: 1 | L109: 2 | M109: 1 | N109: 0 | O109: 0 | P109: 0 | Q109: 2 | S109: =IFERROR(INDEX(SubTests[[#This Row],[Балл1]:[Балл5]],1,SubTests[[#This Row],[Ответ]]),0) -> 0 | T109: 0 | U109: 0 | V109: 0 | W109: 4 | X109: Обобщение | Z109: Биология
B110: 7 | C110: 5 | D110: =SubTests[[#This Row],[Субтест_№]]*100+SubTests[[#This Row],[Вопрос_№]] -> 507 | E110: Копенгаген - Манагуа | F110: Столицы | G110: Города | H110: Страны, острова | K110: 1 | L110: 2 | M110: 1 | N110: 0 | O110: 0 | P110: 0 | Q110: 2 | S110: =IFERROR(INDEX(SubTests[[#This Row],[Балл1]:[Балл5]],1,SubTests[[#This Row],[Ответ]]),0) -> 0 | T110: 0 | U110: 0 | V110: 0 | W110: 5 | X110: Обобщение | Z110: География
B111: 8 | C111: 5 | D111: =SubTests[[#This Row],[Субтест_№]]*100+SubTests[[#This Row],[Вопрос_№]] -> 508 | E111: Атом - молекула | F111: Мельчайшие частицы вещества, состав вещества | G111: Частицы, вещество | H111: Состав клетки | K111: 1 | L111: 2 | M111: 1 | N111: 0 | O111: 0 | P111: 0 | Q111: 2 | S111: =IFERROR(INDEX(SubTests[[#This Row],[Балл1]:[Балл5]],1,SubTests[[#This Row],[Ответ]]),0) -> 0 | T111: 0 | U111: 0 | V111: 0 | W111: 2 | X111: Обобщение | Z111: Математика, физика
B112: 9 | C112: 5 | D112: =SubTests[[#This Row],[Субтест_№]]*100+SubTests[[#This Row],[Вопрос_№]] -> 509 | E112: Жиры - белки | F112: Органические вещества | G112: Состав вещества, вещество | H112: Витамины, углеводы, состав клетки, молекулы | K112: 1 | L112: 2 | M112: 1 | N112: 0 | O112: 0 | P112: 0 | Q112: 2 | S112: =IFERROR(INDEX(SubTests[[#This Row],[Балл1]:[Балл5]],1,SubTests[[#This Row],[Ответ]]),0) -> 0 | T112: 0 | U112: 0 | V112: 0 | W112: 4 | X112: Обобщение | Z112: Биология
B113: 10 | C113: 5 | D113: =SubTests[[#This Row],[Субтест_№]]*100+SubTests[[#This Row],[Вопрос_№]] -> 510 | E113: Наука - искусство | F113: Культура, виды деятельности | G113: Творчество | H113: Этика, знание, просвещение | K113: 1 | L113: 2 | M113: 1 | N113: 0 | O113: 0 | P113: 0 | Q113: 2 | S113: =IFERROR(INDEX(SubTests[[#This Row],[Балл1]:[Балл5]],1,SubTests[[#This Row],[Ответ]]),0) -> 0 | T113: 0 | U113: 0 | V113: 0 | W113: 3 | X113: Обобщение | Z113: История
B114: 11 | C114: 5 | D114: =SubTests[[#This Row],[Субтест_№]]*100+SubTests[[#This Row],[Вопрос_№]] -> 511 | E114: Стойкость - мужество | F114: Положительные черты характера | G114: Качества(черты) характера, характер | H114: Сила, храбрость | K114: 1 | L114: 2 | M114: 1 | N114: 0 | O114: 0 | P114: 0 | Q114: 2 | S114: =IFERROR(INDEX(SubTests[[#This Row],[Балл1]:[Балл5]],1,SubTests[[#This Row],[Ответ]]),0) -> 0 | T114: 0 | U114: 0 | V114: 0 | W114: 1 | X114: Обобщение | Z114: Литература, русский язык
B115: 12 | C115: 5 | D115: =SubTests[[#This Row],[Субтест_№]]*100+SubTests[[#This Row],[Вопрос_№]] -> 512 | E115: Ампер - вольт | F115: Электрические единицы измерения | G115: Физические величины,единицы измерения | H115: Единица, учение, прибор | K115: 1 | L115: 2 | M115: 1 | N115: 0 | O115: 0 | P115: 0 | Q115: 2 | S115: =IFERROR(INDEX(SubTests[[#This Row],[Балл1]:[Балл5]],1,SubTests[[#This Row],[Ответ]]),0) -> 0 | T115: 0 | U115: 0 | V115: 0 | W115: 2 | X115: Обобщение | Z115: Математика, физика
B116: 13 | C116: 5 | D116: =SubTests[[#This Row],[Субтест_№]]*100+SubTests[[#This Row],[Вопрос_№]] -> 513 | E116: Канал - плотина | F116: Искусственные водные сооружения, водные сооружения | G116: Сооружение, водоем, водохранилище | H116: Вода, строение, энергия, природа | K116: 1 | L116: 2 | M116: 1 | N116: 0 | O116: 0 | P116: 0 | Q116: 2 | S116: =IFERROR(INDEX(SubTests[[#This Row],[Балл1]:[Балл5]],1,SubTests[[#This Row],[Ответ]]),0) -> 0 | T116: 0 | U116: 0 | V116: 0 | W116: 5 | X116: Обобщение | Z116: География
B117: 14 | C117: 5 | D117: =SubTests[[#This Row],[Субтест_№]]*100+SubTests[[#This Row],[Вопрос_№]] -> 514 | E117: Мозаика - икона | F117: Изобразительное искусство Произведения изобразительного искусства | G117: Искусство, творчество | H117: Живопись, изображения, фрески, церковь | K117: 1 | L117: 2 | M117: 1 | N117: 0 | O117: 0 | P117: 0 | Q117: 2 | S117: =IFERROR(INDEX(SubTests[[#This Row],[Балл1]:[Балл5]],1,SubTests[[#This Row],[Ответ]]),0) -> 0 | T117: 0 | U117: 0 | V117: 0 | W117: 3 | X117: Обобщение | Z117: История
B118: 15 | C118: 5 | D118: =SubTests[[#This Row],[Субтест_№]]*100+SubTests[[#This Row],[Вопрос_№]] -> 515 | E118: Облачность - осадки | F118: Атмосферное явление, климатические явления | G118: Климат, явление (состояние) погоды | H118: Циклон, природа, дождь | K118: 1 | L118: 2 | M118: 1 | N118: 0 | O118: 0 | P118: 0 | Q118: 2 | S118: =IFERROR(INDEX(SubTests[[#This Row],[Балл1]:[Балл5]],1,SubTests[[#This Row],[Ответ]]),0) -> 0 | T118: 0 | U118: 0 | V118: 0 | W118: 5 | X118: Обобщение | Z118: География
B119: 16 | C119: 5 | D119: =SubTests[[#This Row],[Субтест_№]]*100+SubTests[[#This Row],[Вопрос_№]] -> 516 | E119: Сумма - произведение | F119: Результаты математических действий | G119: Математические действия, операции с числами | H119: Математика, решение | K119: 1 | L119: 2 | M119: 1 | N119: 0 | O119: 0 | P119: 0 | Q119: 2 | S119: =IFERROR(INDEX(SubTests[[#This Row],[Балл1]:[Балл5]],1,SubTests[[#This Row],[Ответ]]),0) -> 0 | T119: 0 | U119: 0 | V119: 0 | W119: 2 | X119: Обобщение | Z119: Математика, физика
B120: 17 | C120: 5 | D120: =SubTests[[#This Row],[Субтест_№]]*100+SubTests[[#This Row],[Вопрос_№]] -> 517 | E120: Иносказание - описание | F120: Литературные приемы | G120: Способы изложения | H120: Творчество, рассказ, сравнение | K120: 1 | L120: 2 | M120: 1 | N120: 0 | O120: 0 | P120: 0 | Q120: 2 | S120: =IFERROR(INDEX(SubTests[[#This Row],[Балл1]:[Балл5]],1,SubTests[[#This Row],[Ответ]]),0) -> 0 | T120: 0 | U120: 0 | V120: 0 | W120: 1 | X120: Обобщение | Z120: Литература, русский язык
B121: 18 | C121: 5 | D121: =SubTests[[#This Row],[Субтест_№]]*100+SubTests[[#This Row],[Вопрос_№]] -> 518 | E121: Классицизм - реализм | F121: Направления в искусстве, художественный стиль | G121: Литературные направления | H121: Литература, формулировка | K121: 1 | L121: 2 | M121: 1 | N121: 0 | O121: 0 | P121: 0 | Q121: 2 | S121: =IFERROR(INDEX(SubTests[[#This Row],[Балл1]:[Балл5]],1,SubTests[[#This Row],[Ответ]]),0) -> 0 | T121: 0 | U121: 0 | V121: 0 | W121: 3 | X121: Обобщение | Z121: История
B122: 19 | C122: 5 | D122: =SubTests[[#This Row],[Субтест_№]]*100+SubTests[[#This Row],[Вопрос_№]] -> 519 | E122: Цунами - ураган | F122: Стихийное бедствие | G122: Стихия | H122: Разрушение | K122: 1 | L122: 2 | M122: 1 | N122: 0 | O122: 0 | P122: 0 | Q122: 2 | S122: =IFERROR(INDEX(SubTests[[#This Row],[Балл1]:[Балл5]],1,SubTests[[#This Row],[Ответ]]),0) -> 0 | T122: 0 | U122: 0 | V122: 0 | W122: 5 | X122: Обобщение | Z122: География
B123: 1 | C123: 6 | D123: =SubTests[[#This Row],[Субтест_№]]*100+SubTests[[#This Row],[Вопрос_№]] -> 601 | E123: 6 9 12 15 18 21 ... | F123: 24 | G123: 31 | H123: 19 | I123: 16 | J123: 23 | K123: 1 | L123: 1 | M123: 0 | N123: 0 | O123: 0 | P123: 0 | Q123: 1 | S123: =IFERROR(INDEX(SubTests[[#This Row],[Балл1]:[Балл5]],1,SubTests[[#This Row],[Ответ]]),0) -> 0 | T123: 0 | U123: 0 | V123: 0 | W123: 0 | X123: Ряды
B124: 2 | C124: 6 | D124: =SubTests[[#This Row],[Субтест_№]]*100+SubTests[[#This Row],[Вопрос_№]] -> 602 | E124: 9 1 7 1 5 1 ... | F124: 4 | G124: 1 | H124: 7 | I124: 5 | J124: 3 | K124: 5 | L124: 0 | M124: 0 | N124: 0 | O124: 0 | P124: 1 | Q124: 1 | S124: =IFERROR(INDEX(SubTests[[#This Row],[Балл1]:[Балл5]],1,SubTests[[#This Row],[Ответ]]),0) -> 0 | T124: 0 | U124: 0 | V124: 0 | W124: 0 | X124: Ряды
B125: 3 | C125: 6 | D125: =SubTests[[#This Row],[Субтест_№]]*100+SubTests[[#This Row],[Вопрос_№]] -> 603 | E125: 2 3 5 6 8 9 ... | F125: 13 | G125: 12 | H125: 11 | I125: 7 | J125: 15 | K125: 3 | L125: 0 | M125: 0 | N125: 1 | O125: 0 | P125: 0 | Q125: 1 | S125: =IFERROR(INDEX(SubTests[[#This Row],[Балл1]:[Балл5]],1,SubTests[[#This Row],[Ответ]]),0) -> 0 | T125: 0 | U125: 0 | V125: 0 | W125: 0 | X125: Ряды
B126: 4 | C126: 6 | D126: =SubTests[[#This Row],[Субтест_№]]*100+SubTests[[#This Row],[Вопрос_№]] -> 604 | E126: 10 12 9 11 8 10 … | F126: 7 | G126: 11 | H126: 12 | I126: 5 | J126: 9 | K126: 1 | L126: 1 | M126: 0 | N126: 0 | O126: 0 | P126: 0 | Q126: 1 | S126: =IFERROR(INDEX(SubTests[[#This Row],[Балл1]:[Балл5]],1,SubTests[[#This Row],[Ответ]]),0) -> 0 | T126: 0 | U126: 0 | V126: 0 | W126: 0 | X126: Ряды
B127: 5 | C127: 6 | D127: =SubTests[[#This Row],[Субтест_№]]*100+SubTests[[#This Row],[Вопрос_№]] -> 605 | E127: 1 3 6 8 16 18 … | F127: 32 | G127: 31 | H127: 22 | I127: 36 | J127: 24 | K127: 4 | L127: 0 | M127: 0 | N127: 0 | O127: 1 | P127: 0 | Q127: 1 | S127: =IFERROR(INDEX(SubTests[[#This Row],[Балл1]:[Балл5]],1,SubTests[[#This Row],[Ответ]]),0) -> 0 | T127: 0 | U127: 0 | V127: 0 | W127: 0 | X127: Ряды
B128: 6 | C128: 6 | D128: =SubTests[[#This Row],[Субтест_№]]*100+SubTests[[#This Row],[Вопрос_№]] -> 606 | E128: 3 4 6 9 13 18 ... | F128: 20 | G128: 24 | H128: 23 | I128: 26 | J128: 19 | K128: 2 | L128: 0 | M128: 1 | N128: 0 | O128: 0 | P128: 0 | Q128: 1 | S128: =IFERROR(INDEX(SubTests[[#This Row],[Балл1]:[Балл5]],1,SubTests[[#This Row],[Ответ]]),0) -> 0 | T128: 0 | U128: 0 | V128: 0 | W128: 0 | X128: Ряды
B129: 7 | C129: 6 | D129: =SubTests[[#This Row],[Субтест_№]]*100+SubTests[[#This Row],[Вопрос_№]] -> 607 | E129: 15 13 16 12 17 11 ... | F129: 14 | G129: 19 | H129: 18 | I129: 21 | J129: 23 | K129: 3 | L129: 0 | M129: 0 | N129: 1 | O129: 0 | P129: 0 | Q129: 1 | S129: =IFERROR(INDEX(SubTests[[#This Row],[Балл1]:[Балл5]],1,SubTests[[#This Row],[Ответ]]),0) -> 0 | T129: 0 | U129: 0 | V129: 0 | W129: 0 | X129: Ряды
B130: 8 | C130: 6 | D130: =SubTests[[#This Row],[Субтест_№]]*100+SubTests[[#This Row],[Вопрос_№]] -> 608 | E130: 1 2 4 8 16 32 ... | F130: 64 | G130: 56 | H130: 48 | I130: 60 | J130: 44 | K130: 1 | L130: 1 | M130: 0 | N130: 0 | O130: 0 | P130: 0 | Q130: 1 | S130: =IFERROR(INDEX(SubTests[[#This Row],[Балл1]:[Балл5]],1,SubTests[[#This Row],[Ответ]]),0) -> 0 | T130: 0 | U130: 0 | V130: 0 | W130: 0 | X130: Ряды
B131: 9 | C131: 6 | D131: =SubTests[[#This Row],[Субтест_№]]*100+SubTests[[#This Row],[Вопрос_№]] -> 609 | E131: 1 2 5 10 17 26 ... | F131: 29 | G131: 32 | H131: 37 | I131: 39 | J131: 35 | K131: 3 | L131: 0 | M131: 0 | N131: 1 | O131: 0 | P131: 0 | Q131: 1 | S131: =IFERROR(INDEX(SubTests[[#This Row],[Балл1]:[Балл5]],1,SubTests[[#This Row],[Ответ]]),0) -> 0 | T131: 0 | U131: 0 | V131: 0 | W131: 0 | X131: Ряды
B132: 10 | C132: 6 | D132: =SubTests[[#This Row],[Субтест_№]]*100+SubTests[[#This Row],[Вопрос_№]] -> 610 | E132: 1 4 9 16 25 36 ... | F132: 47 | G132: 49 | H132: 51 | I132: 42 | J132: 45 | K132: 2 | L132: 0 | M132: 1 | N132: 0 | O132: 0 | P132: 0 | Q132: 1 | S132: =IFERROR(INDEX(SubTests[[#This Row],[Балл1]:[Балл5]],1,SubTests[[#This Row],[Ответ]]),0) -> 0 | T132: 0 | U132: 0 | V132: 0 | W132: 0 | X132: Ряды
B133: 11 | C133: 6 | D133: =SubTests[[#This Row],[Субтест_№]]*100+SubTests[[#This Row],[Вопрос_№]] -> 611 | E133: 1 2 6 15 31 56 ... | F133: 63 | G133: 71 | H133: 81 | I133: 84 | J133: 92 | K133: 5 | L133: 0 | M133: 0 | N133: 0 | O133: 0 | P133: 1 | Q133: 1 | S133: =IFERROR(INDEX(SubTests[[#This Row],[Балл1]:[Балл5]],1,SubTests[[#This Row],[Ответ]]),0) -> 0 | T133: 0 | U133: 0 | V133: 0 | W133: 0 | X133: Ряды
B134: 12 | C134: 6 | D134: =SubTests[[#This Row],[Субтест_№]]*100+SubTests[[#This Row],[Вопрос_№]] -> 612 | E134: 31 24 18 13 9 6 ... | F134: 7 | G134: 11 | H134: 3 | I134: 4 | J134: 5 | K134: 4 | L134: 0 | M134: 0 | N134: 0 | O134: 1 | P134: 0 | Q134: 1 | S134: =IFERROR(INDEX(SubTests[[#This Row],[Балл1]:[Балл5]],1,SubTests[[#This Row],[Ответ]]),0) -> 0 | T134: 0 | U134: 0 | V134: 0 | W134: 0 | X134: Ряды
B135: 13 | C135: 6 | D135: =SubTests[[#This Row],[Субтест_№]]*100+SubTests[[#This Row],[Вопрос_№]] -> 613 | E135: 174 171 57 54 18 15 ... | F135: 1 | G135: 5 | H135: 7 | I135: 9 | J135: 12 | K135: 2 | L135: 0 | M135: 1 | N135: 0 | O135: 0 | P135: 0 | Q135: 1 | S135: =IFERROR(INDEX(SubTests[[#This Row],[Балл1]:[Балл5]],1,SubTests[[#This Row],[Ответ]]),0) -> 0 | T135: 0 | U135: 0 | V135: 0 | W135: 0 | X135: Ряды
B136: 14 | C136: 6 | D136: =SubTests[[#This Row],[Субтест_№]]*100+SubTests[[#This Row],[Вопрос_№]] -> 614 | E136: 54 19 18 14 6 9 ... | F136: 12 | G136: 7 | H136: 5 | I136: 2 | J136: 4 | K136: 4 | L136: 0 | M136: 0 | N136: 0 | O136: 1 | P136: 0 | Q136: 1 | S136: =IFERROR(INDEX(SubTests[[#This Row],[Балл1]:[Балл5]],1,SubTests[[#This Row],[Ответ]]),0) -> 0 | T136: 0 | U136: 0 | V136: 0 | W136: 0 | X136: Ряды
B137: 15 | C137: 6 | D137: =SubTests[[#This Row],[Субтест_№]]*100+SubTests[[#This Row],[Вопрос_№]] -> 615 | E137: 301 294 49 44 11 8 ... | F137: 5 | G137: 3 | H137: 1 | I137: 6 | J137: 4 | K137: 5 | L137: 0 | M137: 0 | N137: 0 | O137: 0 | P137: 1 | Q137: 1 | S137: =IFERROR(INDEX(SubTests[[#This Row],[Балл1]:[Балл5]],1,SubTests[[#This Row],[Ответ]]),0) -> 0 | T137: 0 | U137: 0 | V137: 0 | W137: 0 | X137: Ряды
